{"text_format":"1","workbook":"xlsx","n_sheets":2,"sheets":["ТАБЕЛЬ  И.Б.","И.Б. ИЮЛЬ 2020 "],"not_rendered":{"charts":0,"images":0,"macros":1,"external_links":5,"defined_names":40,"comments":0,"pivot_tables":0},"unopened":[],"bounds":{"document_bytes":16777216,"sheet_cells":100000,"rows_first":2000,"rows_last":500,"rows_between":2000,"halvings":0,"cell_chars":16384,"cell_head_chars":4096},"cells_cut":0,"cells_raw":0,"read":"whole","date_system":"1900"}

{"sheet":"ТАБЕЛЬ  И.Б.","index":0,"n_rows":99,"n_cols":65,"rows_kept":99,"cut":false,"hidden":true,"merged":[[88,15,93,33],[68,5,68,48],[69,5,69,48],[70,5,70,48],[71,5,71,48],[72,5,72,48],[73,5,73,48],[62,5,62,48],[63,5,63,48],[64,5,64,48],[65,5,65,48],[66,5,66,48],[67,5,67,48],[56,5,56,48],[57,5,57,48],[58,5,58,48],[59,5,59,48],[60,5,60,48],[61,5,61,48],[50,5,50,48],[51,5,51,48],[52,5,52,48],[53,5,53,48],[54,5,54,48],[55,5,55,48],[44,3,44,48],[45,5,45,48],[46,5,46,48],[47,5,47,48],[48,5,48,48],[49,5,49,48],[41,0,41,6],[41,8,41,13],[41,15,41,17],[41,19,41,23],[42,8,42,13],[42,15,42,17],[42,19,42,23],[35,56,37,56],[39,0,39,6],[39,8,39,13],[39,15,39,17],[39,19,39,23],[40,8,40,13],[40,15,40,17],[40,19,40,23],[35,50,37,50],[35,51,37,51],[35,52,37,52],[35,53,37,53],[35,54,37,54],[35,55,37,55],[35,44,37,44],[35,45,37,45],[35,46,37,46],[35,47,37,47],[35,48,37,48],[35,49,37,49],[35,38,37,38],[35,39,37,39],[35,40,37,40],[35,41,37,41],[35,42,37,42],[35,43,37,43],[33,53,34,53],[33,54,34,54],[33,55,34,55],[33,56,34,56],[35,0,37,0],[35,1,36,1],[35,2,37,2],[35,3,36,3],[35,4,37,4],[35,37,37,37],[33,47,34,47],[33,48,34,48],[33,49,34,49],[33,50,34,50],[33,51,34,51],[33,52,34,52],[33,41,34,41],[33,42,34,42],[33,43,34,43],[33,44,34,44],[33,45,34,45],[33,46,34,46],[30,50,32,50],[30,51,32,51],[30,52,32,52],[30,53,32,53],[30,54,32,54],[30,43,32,43],[30,44,32,44],[30,45,32,45],[30,46,32,46],[30,47,32,47],[30,48,32,48],[31,2,32,2],[31,37,32,37],[31,38,32,38],[33,2,34,2],[33,37,34,37],[33,38,34,38],[33,39,34,39],[33,40,34,40],[30,49,32,49],[27,56,29,56],[29,2,30,2],[29,37,30,37],[29,38,30,38],[30,39,32,39],[30,40,32,40],[30,41,32,41],[30,42,32,42],[27,48,29,48],[27,49,29,49],[27,50,29,50],[27,51,29,51],[27,52,29,52],[27,53,29,53],[27,42,29,42],[27,43,29,43],[27,44,29,44],[27,45,29,45],[27,46,29,46],[27,47,29,47],[27,2,28,2],[27,37,28,37],[30,55,32,55],[30,56,32,56],[24,56,26,56],[25,2,26,2],[25,37,26,37],[25,38,26,38],[24,48,26,48],[24,49,26,49],[24,50,26,50],[24,51,26,51],[24,52,26,52],[24,53,26,53],[24,42,26,42],[24,43,26,43],[24,44,26,44],[24,45,26,45],[24,46,26,46],[24,47,26,47],[23,2,24,2],[23,37,24,37],[21,52,23,52],[21,53,23,53],[21,54,23,54],[21,55,23,55],[27,38,28,38],[27,39,29,39],[27,40,29,40],[27,41,29,41],[24,54,26,54],[24,55,26,55],[27,54,29,54],[27,55,29,55],[21,2,22,2],[21,37,22,37],[21,38,22,38],[18,51,20,51],[18,52,20,52],[18,53,20,53],[21,56,23,56],[21,45,23,45],[21,46,23,46],[21,47,23,47],[21,48,23,48],[21,49,23,49],[21,50,23,50],[21,39,23,39],[21,40,23,40],[21,41,23,41],[21,42,23,42],[21,43,23,43],[21,44,23,44],[23,38,24,38],[24,39,26,39],[24,40,26,40],[24,41,26,41],[21,51,23,51],[18,56,20,56],[18,45,20,45],[18,46,20,46],[18,47,20,47],[18,48,20,48],[18,49,20,49],[18,50,20,50],[19,2,20,2],[19,37,20,37],[19,38,20,38],[15,56,17,56],[17,2,18,2],[17,37,18,37],[17,38,18,38],[18,39,20,39],[18,40,20,40],[18,41,20,41],[18,42,20,42],[18,43,20,43],[18,44,20,44],[15,50,17,50],[15,51,17,51],[15,52,17,52],[15,53,17,53],[15,54,17,54],[15,55,17,55],[15,44,17,44],[15,45,17,45],[15,46,17,46],[15,47,17,47],[15,48,17,48],[15,49,17,49],[18,54,20,54],[18,55,20,55],[13,5,13,36],[13,46,13,55],[15,2,16,2],[15,37,16,37],[15,38,16,38],[15,39,17,39],[15,40,17,40],[15,41,17,41],[15,42,17,42],[15,43,17,43],[9,53,11,53],[9,54,11,54],[9,55,11,55],[10,39,11,39],[10,40,10,45],[9,38,11,38],[9,39,9,45],[9,47,11,47],[9,48,11,48],[9,49,11,49],[9,50,11,50],[9,37,11,37],[9,26,10,26],[9,27,10,27],[9,28,10,28],[9,29,10,29],[9,30,10,30],[9,31,10,31],[9,51,11,51],[9,52,11,52],[8,38,8,45],[8,46,11,46],[8,47,8,55],[8,56,11,56],[9,5,10,5],[9,6,10,6],[9,7,10,7],[9,8,10,8],[9,9,10,9],[9,10,10,10],[9,20,10,20],[9,21,10,21],[9,22,10,22],[9,23,10,23],[9,24,10,24],[9,25,10,25],[9,14,10,14],[9,15,10,15],[9,16,10,16],[9,17,10,17],[9,18,10,18],[9,19,10,19],[9,32,10,32],[9,33,10,33],[7,17,7,22],[8,0,11,0],[8,1,11,1],[8,2,11,2],[8,3,11,3],[8,4,11,4],[8,5,8,36],[9,11,10,11],[9,12,10,12],[9,13,10,13],[9,34,10,34],[9,35,10,35],[9,36,10,36],[1,0,1,6],[1,44,1,48],[2,2,2,12],[2,24,2,26],[2,27,2,29],[3,0,3,2],[3,38,3,42],[6,4,6,16],[6,17,6,22],[6,23,6,25],[6,38,6,42],[6,43,6,46],[6,48,6,56],[3,51,3,56],[4,0,4,6],[5,8,5,20],[5,38,5,41],[5,44,5,46],[5,48,5,53]]}
[]
[]
[]
[]
["название структурного подразделения"]
[null,null,null,null,null,null,null,null,"ГРАФИК РАБОТЫ",null,null,null,null,null,null,null,null,null,null,null,null,null,null,null,null,null,null,null,null,null,null,null,null,null,null,null,null,null,null,null,null,null,"с",null,null,null,null,"по","2020-05-31"]
[null,null,null,null,"обслуживающего персонала на",null,null,null,null,null,null,null,null,null,null,null,null,{"$f":"IF(DAY(D78)>=28,EDATE(D78,1),D78)","v":"2020-07-01"},null,null,null,null,null,"года",null,null,null,null,null,null,null,null,null,null,null,null,null,null,null,null,null,null,null,"Рабочих дней",null,null,null,{"$f":"VLOOKUP(AM8,'[5]производственный календарь '!$B$2:$D$13,3,0)","v":23},"Рабочих часов",null,null,null,null,null,null,null,null,{"$f":"VLOOKUP(AM8,'[5]производственный календарь '!$B$2:D13,2,0)","v":184}]
[null,null,null,null,null,null,null,null,null,null,null,null,null,null,null,null,null,"МАРТ",null,null,null,null,null,null,null,null,null,null,null,null,null,null,null,null,null,null,null,null,"июль"]
["№ п/п","Табельний номер","Фамилия, и., о.","Профессия,\nдолжность","номер","Отметки о явках и неявках на работу по числам месяца (часов)",null,null,null,null,null,null,null,null,null,null,null,null,null,null,null,null,null,null,null,null,null,null,null,null,null,null,null,null,null,null,null," ","отработано за месяц",null,null,null,null,null,null,null,"Всего неявок","Дни неявок",null,null,null,null,null,null,null,null,"Выходные дни"]
[null,null,null,null,null,1,2,3,4,5,6,7,8,9,10,11,12,13,14,15,"X",16,17,18,19,20,21,22,23,24,25,26,27,28,29,30,31,"дни явок","всего отработано","часов",null,null,null,null,null,null,null,"Очередной отпуск","Больничные","Бесплатный отпуск (А)","Отпуск родовой","Учеьный отпуск","Отпуск ЧАЭС","Прогул","Отпуск женский","Командировка"]
[null,null,null,null,null,null,null,null,null,null,null,null,null,null,null,null,null,null,null,null,null,null,null,null,null,null,null,null,null,null,null,null,null,null,null,null,null,null,null,"всего отработано","из них"]
[null,null,null,null,null,null," "," ",null,null,null,null,null," ",null,null,null,null,null,null,null,null,null,null,null,null,null,null,null,null,null,null,null,null,null,null,null,null,null,null,"Ночные","Вечерние","Праздничные","Сверхурочные","Работы в выходной","Переработка"]
[null,null,null,null,null,null,null,null,null,null,null,null,null,null,null,null,null,null,null,null,"Х",null,null,null,null,null,null,null,null,null,null,null,null,null,null,null,null,null,null,null,null,null,null,null,null,null,null,null,null,null,null,null,null,null,null,null,null,null,null,null,null,null,null,null,"слезинский В.Е."]
[1,"2","3","4","5","6",null,null,null,null,null,null,null,null,null,null,null,null,null,null,null,null,null,null,null,null,null,null,null,null,null,null,null,null,null,null,null,"7",null,"9",null,null,null,null,null,null,"10",null,null,null,null,null,null,null,null,null,"11",null,null,null,null,null,null,null,"медведев а.п."]
[]
[null,null,{"$f":"'И.Б. ИЮЛЬ 2020 '!F27","v":0},null,null,{"$f":"INDEX('И.Б. ИЮЛЬ 2020 '!AC30:HF30,1,MATCH(F10,'И.Б. ИЮЛЬ 2020 '!AC19:HF19,0))","v":{"$error":"#VALUE!"}},null,null,null,null,null,null,null,null,null,null,null,null,null,null,null,null,null,null,null,null,null,null,null,null,null,null,null,null,null,null,null,{"$f":"COUNTIF($F16:$AK16,\">0\")","v":0},{"$f":"SUM($F$16:$AK$16)","v":{"$error":"#VALUE!"}},null,null,null,null,null,null,null,null,{"$f":"COUNTIF($F17:$AK17,\"=От\")","v":0},null,null,null,null,null,null,null,null,{"$f":"COUNTIF(F17:AK17,\"В\")","v":0}]
[]
[null,null,{"$f":"'И.Б. ИЮЛЬ 2020 '!F33","v":0},null,null,null,null,null,null,null,null,null,null,null,null,null,null,null,null,null,null,null,null,null,null,null,null,null,null,null,null,null,null,null,null,null,null,{"$f":"COUNTIF($F18:$AK18,\">0\")","v":0},{"$f":"SUM($F$18:$AK$18)","v":0},null,null,null,null,null,null,null,null,null,null,null,null,null,null,null,null,null,{"$f":"COUNTIF(F19:AK19,\"В\")","v":0}]
[]
[null,null,{"$f":"'И.Б. ИЮЛЬ 2020 '!F39","v":0},null,null,null,null,null,null,null,null,null,null,null,null,null,null,null,null,null,null,null,null,null,null,null,null,null,null,null,null,null,null,null,null,null,null,{"$f":"COUNTIF($F20:$AK20,\">0\")","v":0},{"$f":"SUM($F$20:$AK$20)","v":0},null,null,null,null,null,null,null,null,null,null,null,null,null,null,null,null,null,{"$f":"COUNTIF(F21:AK21,\"В\")","v":0}]
[]
[null,null,{"$f":"'И.Б. ИЮЛЬ 2020 '!F45","v":0},null,null,null,null,null,null,null,null,null,null,null,null,null,null,null,null,null,null,null,null,null,null,null,null,null,null,null,null,null,null,null,null,null,null,{"$f":"COUNTIF($F22:$AK22,\">0\")","v":0},{"$f":"SUM($F$22:$AK$22)","v":0},null,null,null,null,null,null,null,null,null,null,null,null,null,null,null,null,null,{"$f":"COUNTIF(F23:AK23,\"В\")","v":0}]
[]
[null,null,{"$f":"'И.Б. ИЮЛЬ 2020 '!F51","v":0},null,null,null,null,null,null,null,null,null,null,null,null,null,null,null,null,null,null,null,null,null,null,null,null,null,null,null,null,null,null,null,null,null,null,{"$f":"COUNTIF($F24:$AK24,\">0\")","v":0},{"$f":"SUM($F$24:$AK$24)","v":0},null,null,null,null,null,null,null,null,null,null,null,null,null,null,null,null,null,{"$f":"COUNTIF(F25:AK25,\"В\")","v":0}]
[]
[null,null,{"$f":"'И.Б. ИЮЛЬ 2020 '!F57","v":0},null,null,null,null,null,null,null,null,null,null,null,null,null,null,null,null,null,null,null,null,null,null,null,null,null,null,null,null,null,null,null,null,null,null,{"$f":"COUNTIF($F26:$AK26,\">0\")","v":0},{"$f":"SUM($F$26:$AK$26)","v":0},null,null,null,null,null,null,null,null,null,null,null,null,null,null,null,null,null,{"$f":"COUNTIF(F27:AK27,\"В\")","v":0}]
[]
[null,null,{"$f":"'И.Б. ИЮЛЬ 2020 '!F63","v":0},null,null,null,null,null,null,null,null,null,null,null,null,null,null,null,null,null,null,null,null,null,null,null,null,null,null,null,null,null,null,null,null,null,null,{"$f":"COUNTIF($F28:$AK28,\">0\")","v":0},{"$f":"SUM($F$25:$AK$28)","v":0},null,null,null,null,null,null,null,null,null,null,null,null,null,null,null,null,null,{"$f":"COUNTIF(F29:AK29,\"В\")","v":0}]
[]
[null,null,{"$f":"'И.Б. ИЮЛЬ 2020 '!F69","v":0},null,null,null,null,null,null,null,null,null,null,null,null,null,null,null,null,null,null,null,null,null,null,null,null,null,null,null,null,null,null,null,null,null,null,{"$f":"COUNTIF($F30:$AK30,\">0\")","v":0},{"$f":"SUM($F$30:$AK$30)","v":0},null,{"$f":"SUMIF($F30:$AK30,\">8\",$F31:$AK31)","v":0},{"$f":"COUNTIF($F30:$AK30,\"=12\")+COUNTIF($F31:$AK31,\"=8\")*2","v":0},{"$f":"SUMIF($F$12:$AK$12,\"ЧП\",$F30:$AK30)","v":0},{"$f":"SUMPRODUCT(IF(ISNUMBER(F30:AK30),(F30:AK30>8)*(F30:AK30-8),0))","v":0},{"$f":"SUMIF($F$37:$AK$37,\"в\",$F30:$AK30)","v":0},{"$f":"IF($AN30>$BF$7,$AN30-$BF$7,\"–\")","v":"–"},{"$f":"SUM($AV30:$BD31)","v":0},{"$f":"COUNTIF($F30:$AK30,\"=От\")","v":0},{"$f":"COUNTIF($F30:$AK30,\"=Б\")","v":0},{"$f":"COUNTIF($F30:$AK30,\"=А\")","v":0},{"$f":"COUNTIF($F30:$AK30,\"=Ор\")","v":0},{"$f":"COUNTIF($F30:$AK30,\"=У\")","v":0},{"$f":"COUNTIF($F30:$AK30,\"=Ч\")","v":0},{"$f":"COUNTIF($F30:$AK30,\"=Пр\")","v":0},{"$f":"COUNTIF($F30:$AK30,\"=Ож\")","v":0},{"$f":"COUNTIF($F30:$AK30,\"=К\")","v":0},{"$f":"COUNTIF(F31:AK31,\"В\")","v":0}]
[]
[null,null,{"$f":"'И.Б. ИЮЛЬ 2020 '!F75","v":0},null,null,null,null,null,null,null,null,null,null,null,null,null,null,null,null,null,null,null,null,null,null,null,null,null,null,null,null,null,null,null,null,null,null,{"$f":"COUNTIF($F32:$AK32,\">0\")","v":0},{"$f":"SUM($F$32:$AK$32)","v":0},null,null,null,null,null,null,null,null,null,null,null,null,null,null,null,null,null,0]
[]
[null,null,null,null,null,null,null,null,null,null,null,null,null,null,null,null,null,null,null,null,null,null,null,null,null,null,null,null,null,null,null,null,null,null,null,null,null,{"$f":"COUNTIF($F34:$AK34,\">0\")","v":0},{"$f":"SUM($F$34:$AK$34)","v":0},null,null,null,null,null,null,null,null,null,null,null,null,null,null,null,null,null,0]
[]
[null,"101",null,null,null,null,null,null,null,null,null,null,null,null,null,null,null,null,null,null,null,null,null,null,null,null,null,null,null,null,null,null,null,null,null,null,null,{"$f":"COUNTIF($F36:$AK36,\">0\")","v":0},{"$f":"SUM($F$36:$AK$36)","v":0},null,{"$f":"SUM(E37:AJ37)","v":0},{"$f":"COUNTIF($F36:$AK36,\"=12\")+COUNTIF($F37:$AK37,\"=8\")*2","v":0},{"$f":"SUMIF($F$12:$AK$12,\"ЧП\",$F36:$AK36)","v":0},{"$f":"SUMPRODUCT(IF(ISNUMBER(F36:AK36),(F36:AK36>8)*(F36:AK36-8),0))","v":0},{"$f":"SUMIF($F$37:$AK$37,\"в\",$F36:$AK36)","v":0},{"$f":"IF($AN36>$BF$7,$AN36-$BF$7,\"–\")","v":"–"},{"$f":"SUM($AV36:$BD37)","v":0},{"$f":"COUNTIF($F36:$AK36,\"=От\")","v":0},{"$f":"COUNTIF($F36:$AK36,\"=Б\")","v":0},{"$f":"COUNTIF($F36:$AK36,\"=А\")","v":0},{"$f":"COUNTIF($F36:$AK36,\"=Ор\")","v":0},{"$f":"COUNTIF($F36:$AK36,\"=У\")","v":0},{"$f":"COUNTIF($F36:$AK36,\"=Ч\")","v":0},{"$f":"COUNTIF($F36:$AK36,\"=Пр\")","v":0},{"$f":"COUNTIF($F36:$AK36,\"=Ож\")","v":0},{"$f":"COUNTIF($F36:$AK36,\"=К\")","v":0},31]
[]
[]
[]
[]
[]
[]
[]
[]
[]
[]
[]
[]
[]
[]
[]
[]
[]
[]
[]
[]
[]
[]
[]
[]
[]
[]
[]
[]
[]
[]
[]
[]
[]
[]
[]
[]
[]
[]
[null,null,null,null,null,null,null,null,null,null,null,null,null,null,null,null,null,null,null,null,null,null,null,null,null,null,null,null,null,null,null,null,null,null,null,null,null,null,null,null,null,null," "]
[]
[]
[null,null,null,"2020-07-01"]
[null,null,null,2020]
[null,null,null,7]
[null,null,null,1,2,3,4,5,6,7,8,9,10,11,12,13,14,15,16,17,18,19,20,21,22,23,24,25,26,27,28,29,30,31]
[]
[null,null,null,null,null,null,null,null,null,null,null,null,null,null,null,null,null,null,null,null,null,null,null,null,null,null,null,null,null,null,null,null,null,null,null,null,null,null,"2020-01-01"]
[null,null,null,null,null,null,null,null,null,null,null,null,null,null,null,null,null,null,null,null,null,null,null,null,null,null,null,null,null,null,null,null,null,null,null,null,null,null,"2020-01-02"]
[null,null,null,null,null,null,null,null,null,null,null,null,null,null,null,null,null,null,null,null,null,null,null,null,null,null,null,null,null,null,null,null,null,null,null,null,null,null,"2020-01-03"]
[null,null,null,null,null,null,null,null,null,null,null,null,null,null,null,null,null,null,null,null,null,null,null,null,null,null,null,null,null,null,null,null,null,null,null,null,null,null,"2020-01-04"]
[null,null,null,null,null,null,null,null,null,null,null,null,null,null,null,null,null,null,null,null,null,null,null,null,null,null,null,null,null,null,null,null,null,null,null,null,null,null,"2020-01-05"]
[null,null,null,null,null,null,null,null,null,null,null,null,null,null,null,null,null,null,null,null,null,null,null,null,null,null,null,null,null,null,null,null,null,null,null,null,null,null,"2020-01-06"]
[null,null,null,null,null,null,null,null,null,null,null,null,null,null,null,"здесь должна отображаться фамилия",null,null,null,null,null,null,null,null,null,null,null,null,null,null,null,null,null,null,null,null,null,null,"2020-01-07"]
[null,null,null,null,null,null,null,null,null,null,null,null,null,null,null,null,null,null,null,null,null,null,null,null,null,null,null,null,null,null,null,null,null,null,null,null,null,null,"2020-01-08"]
[null,null,null,null,null,null,null,null,null,null,null,null,null,null,null,null,null,null,null,null,null,null,null,null,null,null,null,null,null,null,null,null,null,null,null,null,null,null,"2020-02-23"]
[null,null,null,null,null,null,null,null,null,null,null,null,null,null,null,null,null,null,null,null,null,null,null,null,null,null,null,null,null,null,null,null,null,null,null,null,null,null,"2020-03-08"]
[null,null,null,null,null,null,null,null,null,null,null,null,null,null,null,null,null,null,null,null,null,null,null,null,null,null,null,null,null,null,null,null,null,null,null,null,null,null,"2020-05-01"]
[]
[]
[null,null,null,null,null,null,null,null,null,null,null,null,null,null,null,null,null,null,null,null,null,null,null,null,null,null,null,null,null,null,null,null,null,null,null,null,null,null,"2020-05-09"]
[]
[null,null,null,null,null,null,null,null,null,null,null,null,null,null,null,null,null,null,null,null,null,null,null,null,null,null,null,null,null,null,null,null,null,null,null,null,null,null,"2020-06-12"]
[null,null,null,null,null,null,null,null,null,null,null,null,null,null,null,null,null,null,null,null,null,null,null,null,null,null,null,null,null,null,null,null,null,null,null,null,null,null,"2020-11-04"]

{"sheet":"И.Б. ИЮЛЬ 2020 ","index":1,"n_rows":98,"n_cols":257,"rows_kept":98,"cut":false,"hidden":false,"merged":[[0,6,0,217],[6,6,6,217],[7,5,7,217],[8,6,8,216],[9,6,9,216],[97,5,97,7],[97,8,97,21],[97,27,97,56],[97,63,97,91],[95,5,95,7],[95,8,95,21],[95,27,95,56],[95,63,95,91],[96,5,96,7],[96,8,96,21],[96,27,96,56],[96,63,96,91],[93,5,93,7],[93,8,93,21],[93,27,93,56],[93,63,93,91],[94,5,94,7],[94,8,94,21],[94,27,94,56],[94,63,94,91],[91,5,91,7],[91,8,91,21],[91,27,91,56],[91,63,91,91],[92,5,92,7],[92,8,92,21],[92,27,92,56],[92,63,92,91],[89,5,89,7],[89,8,89,21],[89,27,89,56],[89,63,89,91],[90,5,90,7],[90,8,90,21],[90,27,90,56],[90,63,90,91],[87,5,87,7],[87,8,87,21],[87,27,87,56],[87,63,87,91],[88,5,88,7],[88,8,88,21],[88,27,88,56],[88,63,88,91],[81,214,81,220],[84,5,84,21],[86,5,86,7],[86,8,86,21],[86,27,86,56],[86,63,86,91],[81,166,81,171],[81,172,81,177],[81,178,81,183],[81,184,81,189],[81,190,81,195],[81,196,81,201],[81,130,81,135],[81,136,81,141],[81,142,81,147],[81,148,81,153],[81,154,81,159],[81,160,81,165],[81,94,81,99],[81,100,81,105],[81,106,81,111],[81,112,81,117],[81,118,81,123],[81,124,81,129],[81,58,81,63],[81,64,81,69],[81,70,81,75],[81,76,81,81],[81,82,81,87],[81,88,81,93],[81,24,81,27],[81,28,81,33],[81,34,81,39],[81,40,81,45],[81,46,81,51],[81,52,81,57],[80,184,80,189],[80,190,80,195],[80,196,80,201],[80,202,80,207],[80,208,80,213],[80,214,80,220],[80,148,80,153],[80,154,80,159],[80,160,80,165],[80,166,80,171],[80,172,80,177],[80,178,80,183],[80,112,80,117],[80,118,80,123],[80,124,80,129],[80,130,80,135],[80,136,80,141],[80,142,80,147],[80,76,80,81],[80,82,80,87],[80,88,80,93],[80,94,80,99],[80,100,80,105],[80,106,80,111],[81,202,81,207],[81,208,81,213],[79,208,79,213],[80,24,80,27],[80,28,80,33],[80,34,80,39],[80,40,80,45],[80,46,80,51],[80,52,80,57],[80,58,80,63],[80,64,80,69],[80,70,80,75],[79,172,79,177],[79,178,79,183],[79,184,79,189],[79,190,79,195],[79,196,79,201],[79,202,79,207],[79,136,79,141],[79,142,79,147],[79,148,79,153],[79,154,79,159],[79,160,79,165],[79,166,79,171],[79,100,79,105],[79,106,79,111],[79,112,79,117],[79,118,79,123],[79,124,79,129],[79,130,79,135],[79,64,79,69],[79,70,79,75],[79,76,79,81],[79,82,79,87],[79,88,79,93],[79,94,79,99],[78,202,78,207],[78,208,78,213],[78,214,79,220],[78,221,79,228],[79,28,79,33],[79,34,79,39],[79,40,79,45],[79,46,79,51],[79,52,79,57],[79,58,79,63],[78,166,78,171],[78,172,78,177],[78,178,78,183],[78,184,78,189],[78,190,78,195],[78,196,78,201],[78,130,78,135],[78,136,78,141],[78,142,78,147],[78,148,78,153],[78,154,78,159],[78,160,78,165],[78,94,78,99],[78,100,78,105],[78,106,78,111],[78,112,78,117],[78,118,78,123],[78,124,78,129],[78,58,78,63],[78,64,78,69],[78,70,78,75],[78,76,78,81],[78,82,78,87],[78,88,78,93],[78,23,79,27],[78,28,78,33],[78,34,78,39],[78,40,78,45],[78,46,78,51],[78,52,78,57],[77,178,77,183],[77,184,77,189],[77,190,77,195],[77,196,77,201],[77,202,77,207],[77,208,77,213],[77,142,77,147],[77,148,77,153],[77,154,77,159],[77,160,77,165],[77,166,77,171],[77,172,77,177],[77,106,77,111],[77,112,77,117],[77,118,77,123],[77,124,77,129],[77,130,77,135],[77,136,77,141],[77,70,77,75],[77,76,77,81],[77,82,77,87],[77,88,77,93],[77,94,77,99],[77,100,77,105],[76,202,76,207],[76,208,76,213],[76,221,77,228],[77,28,77,33],[77,34,77,39],[77,40,77,45],[77,46,77,51],[77,52,77,57],[77,58,77,63],[77,64,77,69],[76,166,76,171],[76,172,76,177],[76,178,76,183],[76,184,76,189],[76,190,76,195],[76,196,76,201],[76,130,76,135],[76,136,76,141],[76,142,76,147],[76,148,76,153],[76,154,76,159],[76,160,76,165],[76,94,76,99],[76,100,76,105],[76,106,76,111],[76,112,76,117],[76,118,76,123],[76,124,76,129],[76,58,76,63],[76,64,76,69],[76,70,76,75],[76,76,76,81],[76,82,76,87],[76,88,76,93],[76,23,77,27],[76,28,76,33],[76,34,76,39],[76,40,76,45],[76,46,76,51],[76,52,76,57],[75,178,75,183],[75,184,75,189],[75,190,75,195],[75,196,75,201],[75,202,75,207],[75,208,75,213],[75,142,75,147],[75,148,75,153],[75,154,75,159],[75,160,75,165],[75,166,75,171],[75,172,75,177],[75,106,75,111],[75,112,75,117],[75,118,75,123],[75,124,75,129],[75,130,75,135],[75,136,75,141],[75,70,75,75],[75,76,75,81],[75,82,75,87],[75,88,75,93],[75,94,75,99],[75,100,75,105],[74,202,74,207],[74,208,74,213],[74,214,77,220],[75,28,75,33],[75,34,75,39],[75,40,75,45],[75,46,75,51],[75,52,75,57],[75,58,75,63],[75,64,75,69],[74,166,74,171],[74,172,74,177],[74,178,74,183],[74,184,74,189],[74,190,74,195],[74,196,74,201],[74,130,74,135],[74,136,74,141],[74,142,74,147],[74,148,74,153],[74,154,74,159],[74,160,74,165],[74,94,74,99],[74,100,74,105],[74,106,74,111],[74,112,74,117],[74,118,74,123],[74,124,74,129],[74,58,74,63],[74,64,74,69],[74,70,74,75],[74,76,74,81],[74,82,74,87],[74,88,74,93],[73,208,73,213],[73,214,73,220],[74,0,81,4],[74,5,81,22],[74,23,75,27],[74,28,74,33],[74,34,74,39],[74,40,74,45],[74,46,74,51],[74,52,74,57],[73,172,73,177],[73,178,73,183],[73,184,73,189],[73,190,73,195],[73,196,73,201],[73,202,73,207],[73,136,73,141],[73,142,73,147],[73,148,73,153],[73,154,73,159],[73,160,73,165],[73,166,73,171],[73,100,73,105],[73,106,73,111],[73,112,73,117],[73,118,73,123],[73,124,73,129],[73,130,73,135],[73,64,73,69],[73,70,73,75],[73,76,73,81],[73,82,73,87],[73,88,73,93],[73,94,73,99],[72,208,72,213],[72,214,72,220],[72,221,73,228],[73,24,73,27],[73,28,73,33],[73,34,73,39],[73,40,73,45],[73,46,73,51],[73,52,73,57],[73,58,73,63],[72,172,72,177],[72,178,72,183],[72,184,72,189],[72,190,72,195],[72,196,72,201],[72,202,72,207],[72,136,72,141],[72,142,72,147],[72,148,72,153],[72,154,72,159],[72,160,72,165],[72,166,72,171],[72,100,72,105],[72,106,72,111],[72,112,72,117],[72,118,72,123],[72,124,72,129],[72,130,72,135],[72,64,72,69],[72,70,72,75],[72,76,72,81],[72,82,72,87],[72,88,72,93],[72,94,72,99],[71,202,71,207],[71,208,71,213],[71,214,71,220],[72,24,72,27],[72,28,72,33],[72,34,72,39],[72,40,72,45],[72,46,72,51],[72,52,72,57],[72,58,72,63],[71,166,71,171],[71,172,71,177],[71,178,71,183],[71,184,71,189],[71,190,71,195],[71,196,71,201],[71,130,71,135],[71,136,71,141],[71,142,71,147],[71,148,71,153],[71,154,71,159],[71,160,71,165],[71,94,71,99],[71,100,71,105],[70,221,71,228],[71,24,71,27],[71,28,71,33],[71,34,71,39],[71,40,71,45],[71,46,71,51],[71,52,71,57],[70,160,70,165],[70,166,70,171],[70,172,70,177],[70,178,70,183],[70,184,70,189],[70,190,70,195],[70,124,70,129],[70,130,70,135],[70,136,70,141],[70,142,70,147],[70,148,70,153],[70,154,70,159],[70,70,70,75],[70,76,70,81],[70,82,70,87],[69,184,69,189],[69,190,69,195],[69,196,69,201],[69,202,69,207],[69,208,69,213],[71,106,71,111],[71,112,71,117],[71,118,71,123],[71,124,71,129],[71,58,71,63],[71,64,71,69],[71,70,71,75],[71,76,71,81],[71,82,71,87],[71,88,71,93],[70,196,70,201],[70,202,70,207],[70,208,70,213],[70,24,70,27],[70,28,70,33],[70,34,70,39],[70,40,70,45],[70,46,70,51],[69,148,69,153],[69,154,69,159],[69,160,69,165],[69,166,69,171],[69,172,69,177],[69,178,69,183],[69,112,69,117],[69,118,69,123],[69,124,69,129],[69,130,69,135],[69,136,69,141],[69,142,69,147],[69,76,69,81],[69,82,69,87],[69,88,69,93],[69,94,69,99],[69,100,69,105],[69,106,69,111],[70,88,70,93],[70,94,70,99],[70,100,70,105],[70,106,70,111],[70,112,70,117],[70,118,70,123],[70,52,70,57],[70,58,70,63],[70,64,70,69],[68,208,68,213],[68,214,70,220],[69,28,69,33],[69,34,69,39],[69,40,69,45],[69,46,69,51],[69,52,69,57],[69,58,69,63],[69,64,69,69],[69,70,69,75],[68,172,68,177],[68,178,68,183],[68,184,68,189],[68,190,68,195],[68,196,68,201],[68,202,68,207],[68,136,68,141],[68,142,68,147],[68,148,68,153],[68,154,68,159],[68,160,68,165],[68,166,68,171],[68,100,68,105],[68,106,68,111],[68,112,68,117],[68,118,68,123],[68,124,68,129],[68,130,68,135],[68,64,68,69],[68,70,68,75],[68,76,68,81],[68,82,68,87],[68,88,68,93],[68,94,68,99],[67,214,67,220],[68,0,73,4],[68,5,73,22],[68,23,69,27],[68,28,68,33],[68,34,68,39],[68,40,68,45],[68,46,68,51],[68,52,68,57],[68,58,68,63],[67,178,67,183],[67,184,67,189],[67,190,67,195],[67,196,67,201],[67,202,67,207],[67,208,67,213],[67,142,67,147],[67,148,67,153],[67,154,67,159],[67,160,67,165],[67,166,67,171],[67,172,67,177],[67,106,67,111],[67,112,67,117],[67,118,67,123],[67,124,67,129],[67,130,67,135],[67,136,67,141],[67,70,67,75],[67,76,67,81],[67,82,67,87],[67,88,67,93],[67,94,67,99],[67,100,67,105],[66,214,66,220],[66,221,67,228],[67,24,67,27],[67,28,67,33],[67,34,67,39],[67,40,67,45],[67,46,67,51],[67,52,67,57],[67,58,67,63],[67,64,67,69],[66,178,66,183],[66,184,66,189],[66,190,66,195],[66,196,66,201],[66,202,66,207],[66,208,66,213],[66,142,66,147],[66,148,66,153],[66,154,66,159],[66,160,66,165],[66,166,66,171],[66,172,66,177],[66,106,66,111],[66,112,66,117],[66,118,66,123],[66,124,66,129],[66,130,66,135],[66,136,66,141],[66,70,66,75],[66,76,66,81],[66,82,66,87],[66,88,66,93],[66,94,66,99],[66,100,66,105],[65,208,65,213],[65,214,65,220],[66,24,66,27],[66,28,66,33],[66,34,66,39],[66,40,66,45],[66,46,66,51],[66,52,66,57],[66,58,66,63],[66,64,66,69],[65,172,65,177],[65,178,65,183],[65,184,65,189],[65,190,65,195],[65,196,65,201],[65,202,65,207],[65,136,65,141],[65,142,65,147],[65,148,65,153],[65,154,65,159],[65,160,65,165],[65,166,65,171],[65,100,65,105],[65,106,65,111],[65,112,65,117],[65,118,65,123],[65,124,65,129],[65,130,65,135],[65,64,65,69],[65,70,65,75],[65,76,65,81],[65,82,65,87],[65,88,65,93],[65,94,65,99],[64,202,64,207],[64,208,64,213],[64,221,65,228],[65,24,65,27],[65,28,65,33],[65,34,65,39],[65,40,65,45],[65,46,65,51],[65,52,65,57],[65,58,65,63],[64,166,64,171],[64,172,64,177],[64,178,64,183],[64,184,64,189],[64,190,64,195],[64,196,64,201],[64,130,64,135],[64,136,64,141],[64,142,64,147],[64,148,64,153],[64,154,64,159],[64,160,64,165],[64,94,64,99],[64,100,64,105],[64,106,64,111],[64,112,64,117],[64,118,64,123],[64,124,64,129],[64,58,64,63],[64,64,64,69],[64,70,64,75],[64,76,64,81],[64,82,64,87],[64,88,64,93],[64,24,64,27],[64,28,64,33],[64,34,64,39],[64,40,64,45],[64,46,64,51],[64,52,64,57],[63,178,63,183],[63,70,63,75],[63,76,63,81],[63,82,63,87],[63,88,63,93],[63,94,63,99],[63,100,63,105],[63,184,63,189],[63,190,63,195],[63,196,63,201],[63,202,63,207],[63,208,63,213],[63,142,63,147],[63,148,63,153],[63,154,63,159],[63,160,63,165],[63,166,63,171],[63,172,63,177],[63,106,63,111],[63,112,63,117],[63,118,63,123],[63,124,63,129],[63,130,63,135],[63,136,63,141],[62,202,62,207],[62,208,62,213],[62,214,64,220],[63,28,63,33],[63,34,63,39],[63,40,63,45],[63,46,63,51],[63,52,63,57],[63,58,63,63],[63,64,63,69],[62,166,62,171],[62,172,62,177],[62,178,62,183],[62,184,62,189],[62,190,62,195],[62,196,62,201],[62,130,62,135],[62,136,62,141],[62,142,62,147],[62,148,62,153],[62,154,62,159],[62,160,62,165],[62,94,62,99],[62,100,62,105],[62,106,62,111],[62,112,62,117],[62,118,62,123],[62,124,62,129],[62,58,62,63],[62,64,62,69],[62,70,62,75],[62,76,62,81],[62,82,62,87],[62,88,62,93],[61,208,61,213],[61,214,61,220],[62,0,67,4],[62,5,67,22],[62,23,63,27],[62,28,62,33],[62,34,62,39],[62,40,62,45],[62,46,62,51],[62,52,62,57],[61,172,61,177],[61,178,61,183],[61,184,61,189],[61,190,61,195],[61,196,61,201],[61,202,61,207],[61,136,61,141],[61,142,61,147],[61,148,61,153],[61,154,61,159],[61,160,61,165],[61,166,61,171],[61,100,61,105],[61,106,61,111],[61,112,61,117],[61,118,61,123],[61,124,61,129],[61,130,61,135],[61,64,61,69],[61,70,61,75],[61,76,61,81],[61,82,61,87],[61,88,61,93],[61,94,61,99],[60,208,60,213],[60,214,60,220],[60,221,61,228],[61,24,61,27],[61,28,61,33],[61,34,61,39],[61,40,61,45],[61,46,61,51],[61,52,61,57],[61,58,61,63],[60,172,60,177],[60,178,60,183],[60,184,60,189],[60,190,60,195],[60,196,60,201],[60,202,60,207],[60,136,60,141],[60,142,60,147],[60,148,60,153],[60,154,60,159],[60,160,60,165],[60,166,60,171],[60,100,60,105],[60,106,60,111],[60,112,60,117],[60,118,60,123],[60,124,60,129],[60,130,60,135],[60,64,60,69],[60,70,60,75],[60,76,60,81],[60,82,60,87],[60,88,60,93],[60,94,60,99],[59,202,59,207],[59,208,59,213],[59,214,59,220],[60,24,60,27],[60,28,60,33],[60,34,60,39],[60,40,60,45],[60,46,60,51],[60,52,60,57],[60,58,60,63],[59,166,59,171],[59,172,59,177],[59,178,59,183],[59,184,59,189],[59,190,59,195],[59,196,59,201],[59,130,59,135],[59,136,59,141],[59,142,59,147],[59,148,59,153],[59,154,59,159],[59,160,59,165],[59,94,59,99],[59,100,59,105],[59,106,59,111],[59,112,59,117],[59,118,59,123],[59,124,59,129],[59,58,59,63],[59,64,59,69],[59,70,59,75],[59,76,59,81],[59,82,59,87],[59,88,59,93],[58,196,58,201],[58,202,58,207],[58,208,58,213],[58,221,59,228],[59,24,59,27],[59,28,59,33],[59,34,59,39],[59,40,59,45],[59,46,59,51],[59,52,59,57],[58,160,58,165],[58,166,58,171],[58,172,58,177],[58,178,58,183],[58,184,58,189],[58,190,58,195],[58,124,58,129],[58,130,58,135],[58,136,58,141],[58,142,58,147],[58,148,58,153],[58,154,58,159],[58,88,58,93],[58,94,58,99],[58,100,58,105],[58,106,58,111],[58,112,58,117],[58,118,58,123],[58,52,58,57],[58,58,58,63],[58,64,58,69],[58,70,58,75],[58,76,58,81],[58,82,58,87],[57,184,57,189],[57,190,57,195],[57,196,57,201],[57,202,57,207],[57,208,57,213],[58,24,58,27],[58,28,58,33],[58,34,58,39],[58,40,58,45],[58,46,58,51],[57,148,57,153],[57,154,57,159],[57,160,57,165],[57,166,57,171],[57,172,57,177],[57,178,57,183],[57,112,57,117],[57,118,57,123],[57,124,57,129],[57,130,57,135],[57,136,57,141],[57,142,57,147],[57,76,57,81],[57,82,57,87],[57,88,57,93],[57,94,57,99],[57,100,57,105],[57,106,57,111],[56,208,56,213],[56,214,58,220],[57,28,57,33],[57,34,57,39],[57,40,57,45],[57,46,57,51],[57,52,57,57],[57,58,57,63],[57,64,57,69],[57,70,57,75],[56,172,56,177],[56,178,56,183],[56,184,56,189],[56,190,56,195],[56,196,56,201],[56,202,56,207],[56,136,56,141],[56,142,56,147],[56,148,56,153],[56,154,56,159],[56,160,56,165],[56,166,56,171],[56,100,56,105],[56,106,56,111],[56,112,56,117],[56,118,56,123],[56,124,56,129],[56,130,56,135],[56,64,56,69],[56,70,56,75],[56,76,56,81],[56,82,56,87],[56,88,56,93],[56,94,56,99],[55,214,55,220],[56,0,61,4],[56,5,61,22],[56,23,57,27],[56,28,56,33],[56,34,56,39],[56,40,56,45],[56,46,56,51],[56,52,56,57],[56,58,56,63],[55,178,55,183],[55,184,55,189],[55,190,55,195],[55,196,55,201],[55,202,55,207],[55,208,55,213],[55,142,55,147],[55,148,55,153],[55,154,55,159],[55,160,55,165],[55,166,55,171],[55,172,55,177],[55,106,55,111],[55,112,55,117],[55,118,55,123],[55,124,55,129],[55,130,55,135],[55,136,55,141],[55,70,55,75],[55,76,55,81],[55,82,55,87],[55,88,55,93],[55,94,55,99],[55,100,55,105],[54,214,54,220],[54,221,55,228],[55,24,55,27],[55,28,55,33],[55,34,55,39],[55,40,55,45],[55,46,55,51],[55,52,55,57],[55,58,55,63],[55,64,55,69],[54,178,54,183],[54,184,54,189],[54,190,54,195],[54,196,54,201],[54,202,54,207],[54,208,54,213],[54,142,54,147],[54,148,54,153],[54,154,54,159],[54,160,54,165],[54,166,54,171],[54,172,54,177],[54,106,54,111],[54,112,54,117],[54,118,54,123],[54,124,54,129],[54,130,54,135],[54,136,54,141],[54,70,54,75],[54,76,54,81],[54,82,54,87],[54,88,54,93],[54,94,54,99],[54,100,54,105],[53,208,53,213],[53,214,53,220],[54,24,54,27],[54,28,54,33],[54,34,54,39],[54,40,54,45],[54,46,54,51],[54,52,54,57],[54,58,54,63],[54,64,54,69],[53,172,53,177],[53,178,53,183],[53,184,53,189],[53,190,53,195],[53,196,53,201],[53,202,53,207],[53,136,53,141],[53,142,53,147],[53,148,53,153],[53,154,53,159],[53,160,53,165],[53,166,53,171],[53,100,53,105],[53,106,53,111],[53,112,53,117],[53,118,53,123],[53,124,53,129],[53,130,53,135],[53,64,53,69]],"merged_total":2007,"flags":["merged_cut"]}
[null,null,null,null,null,null,"ПОМОГИТЕ С ПОМОЩЬЮ МАКРОСА СДЕЛАТЬ ТАК, ЧТОБЫ ВО ВСЕ ЯЧЕЙКИ, ОКРЫШЕННЫЕ В ЖЁЛТЫЙ ЦВЕТ В ЭТОЙ ТАБЛИЦЕ, ПРОСТАВЛЯЛОСЬ ВРЕМЯ В ФОРМАТЕ 0:00 ЕСЛИ В ЯЧЕЙКИ , ОКРЫШЕННЫЕ",null,null,null,null,null,null,null,null,null,null,null,null,null,null,null,null,null,null,null,null,null,null,null,null,null,null,null,null,null,null,null,null,null,null,null,null,null,null,null,null,null,null,null,null,null,null,null,null,null,null,null,null,null,null,null,null,null,null,null,null,null,null,null,null,null,null,null,null,null,null,null,null,null,null,null,null,null,null,null,null,null,null,null,null,null,null,null,null,null,null,null,null,null,null,null,null,null,null,null,null,null,null,null,null,null,null,null,null,null,null,null,null,null,null,null,null,null,null,null,null,null,null,null,null,null,null,null,null,null,null,null,null,null,null,null,null,null,null,null,null,null,null,null,null,null,null,null,null,null,null,null,null,null,null,null,null,null,null,null,null,null,null,null,null,null,null,null,null,null,null,null,null,null,null,null,null,null,null,null,null,null,null,null,null,null,null,null,null,null,null,null,null,null,null,null,null,null,null,null,null,null,null,null,null,null,null,null,null,null,null,null,null,null,null,null,null,null,null,null,null,null,null,null,null,null,null,null,null,null,null,null,null,null,null,"СЕГОДНЯ",null,null,null,null,null,null,null,null,"на январь 2020 года",null,1]
[null,null,null,null,null,null,null,null,null,null,null,null,null,null,null,null,null,null,null,null,null,null,null,null,null,null,null,null,null,null,null,null,null,null,null,null,null,null,null,null,null,null,null,null,null,null,null,null,null,null,null,null,null,null,null,null,null,null,null,null,null,null,null,null,null,null,null,null,null,null,null,null,null,null,null,null,null,null,null,null,null,null,null,null,null,null,null,null,null,null,null,null,null,null,null,null,null,null,null,null,null,null,null,null,null,null,null,null,null,null,null,null,null,null,null,null,null,null,null,null,null,null,null,null,null,null,null,null,null,null,null,null,null,null,null,null,null,null,null,null,null,null,null,null,null,null,null,null,null,null,null,null,null,null,null,null,null,null,null,null,null,null,null,null,null,null,null,null,null,null,null,null,null,null,null,null,null,null,null,null,null,null,null,null,null,null,null,null,null,null,null,null,null,null,null,null,null,null,null,null,null,null,null,null,null,null,null,null,null,null,null,null,null,null,null,null,null,null,null,null,null,null,null,null,null,null,null,null,null,null,null,null,null,null,null,null,null,null,null,null,null,{"$f":"TODAY()","v":"2020-05-11"},null,null,null,null,null,null,null,null,"на февраль 2020 года",null,2]
[null,null,null,null,null,null,null,null,null,null,null,null,null,null,null,null,null,null,null,null,null,null,null,null,null,null,null,null,null,null,null,null,null,null,null,null,null,null,null,null,null,null,null,null,null,null,null,null,null,null,null,null,null,null,null,null,null,null,null,null,null,null,null,null,null,null,null,null,null,null,null,null,null,null,null,null,null,null,null,null,null,null,null,null,null,null,null,null,null,null,null,null,null,null,null,null,null,null,null,null,null,null,null,null,null,null,null,null,null,null,null,null,null,null,null,null,null,null,null,null,null,null,null,null,null,null,null,null,null,null,null,null,null,null,null,null,null,null,null,null,null,null,null,null,null,null,null,null,null,null,null,null,null,null,null,null,null,null,null,null,null,null,null,null,null,null,null,null,null,null,null,null,null,null,null,null,null,null,null,null,null,null,null,null,null,null,null,null,null,null,null,null,null,null,null,null,null,null,null,null,null,null,null,null,null,null,null,null,null,null,null,null,null,null,null,null,null,null,null,null,null,null,null,null,null,null,null,null,null,null,null,null,null,null,null,null,null,null,null,null,null,{"$f":"TEXT(HZ2,\"дддд\")","v":"суббота"},null,null,null,null,null,null,null,null,"на март 2020 года",null,3]
[null,null,null,null,null,null,null,null,null,null,null,null,null,null,null,null,null,null,null,null,null,null,null,null,null,null,null,null,null,null,null,null,null,null,null,null,null,null,null,null,null,null,null,null,null,null,null,null,null,null,null,null,null,null,null,null,null,null,null,null,null,null,null,null,null,null,null,null,null,null,null,null,null,null,null,null,null,null,null,null,null,null,null,null,null,null,null,null,null,null,null,null,null,null,null,null,null,null,null,null,null,null,null,null,null,null,null,null,null,null,null,null,null,null,null,null,null,null,null,null,null,null,null,null,null,null,null,null,null,null,null,null,null,null,null,null,null,null,null,null,null,null,null,null,null,null,null,null,null,null,null,null,null,null,null,null,null,null,null,null,null,null,null,null,null,null,null,null,null,null,null,null,null,null,null,null,null,null,null,null,null,null,null,null,null,null,null,null,null,null,null,null,null,null,null,null,null,null,null,null,null,null,null,null,null,null,null,null,null,null,null,null,null,null,null,null,null,null,null,null,null,null,null,null,null,null,null,null,null,null,null,null,null,null,null,null,null,null,null,null,null,{"$f":"WEEKNUM(IH2,2)&\"-ая неделя\"","v":"20-ая неделя"},null,null,null,null,null,null,null,null,"на апрель 2020 года",null,4]
[null,null,null,null,null,null,null,null,null,null,null,null,null,null,null,null,null,null,null,null,null,null,null,null,null,null,null,null,null,null,null,null,null,null,null,null,null,null,null,null,null,null,null,null,null,null,null,null,null,null,null,null,null,null,null,null,null,null,null,null,null,null,null,null,null,null,null,null,null,null,null,null,null,null,null,null,null,null,null,null,null,null,null,null,null,null,null,null,null,null,null,null,null,null,null,null,null,null,null,null,null,null,null,null,null,null,null,null,null,null,null,null,null,null,null,null,null,null,null,null,null,null,null,null,null,null,null,null,null,null,null,null,null,null,null,null,null,null,null,null,null,null,null,null,null,null,null,null,null,null,null,null,null,null,null,null,null,null,null,null,null,null,null,null,null,null,null,null,null,null,null,null,null,null,null,null,null,null,null,null,null,null,null,null,null,null,null,null,null,null,null,null,null,null,null,null,null,null,null,null,null,null,null,null,null,null,null,null,null,null,null,null,null,null,null,null,null,null,null,null,null,null,null,null,null,null,null,null,null,null,null,null,null,null,null,null,null,null,null,null,null,{"$f":"IF(OR(#REF!<IC3,AND(#REF!<IC2,#REF!=IC3)),$CN$19,IF(OR(#REF!>IC3,AND(#REF!>IC2,#REF!=IC3)),0,DAY(HZ2)))","v":{"$error":"#REF!"}},null,null,null,null,null,null,null,null,"на май 2020 года",null,5]
[null,null,null,null,null,null,null,null,null,null,null,null,null,null,null,null,null,null,null,null,null,null,null,null,null,null,null,null,null,null,null,null,null,null,null,null,null,null,null,null,null,null,null,null,null,null,null,null,null,null,null,null,null,null,null,null,null,null,null,null,null,null,null,null,null,null,null,null,null,null,null,null,null,null,null,null,null,null,null,null,null,null,null,null,null,null,null,null,null,null,null,null,null,null,null,null,null,null,null,null,null,null,null,null,null,null,null,null,null,null,null,null,null,null,null,null,null,null,null,null,null,null,null,null,null,null,null,null,null,null,null,null,null,null,null,null,null,null,null,null,null,null,null,null,null,null,null,null,null,null,null,null,null,null,null,null,null,null,null,null,null,null,null,null,null,null,null,null,null,null,null,null,null,null,null,null,null,null,null,null,null,null,null,null,null,null,null,null,null,null,null,null,null,null,null,null,null,null,null,null,null,null,null,null,null,null,null,null,null,null,null,null,null,null,null,null,null,null,null,null,null,null,null,null,null,null,null,null,null,null,null,null,null,null,null,null,null,null,null,null,"время",null,null,null,null,null,null,null,null,null,"на июнь 2020 года",null,6]
[null,null,null,null,null,null,"СИНИМ ЦВЕТОМ БУДЕТ ВВОДИТЬСЯ \"ОТ\" (ОТПУСК); А ЕСЛИ В ЭТИ ЖЕ ЯЧЕЙКИ СИНЕГО ЦВЕТА ВО ВСЕЙ ТАБЛИЦЕ БУДЕТ ПРОСТАВЛЯТЬСЯ ВРЕМЯ ОТ 0:00 ДО 24:00",null,null,null,null,null,null,null,null,null,null,null,null,null,null,null,null,null,null,null,null,null,null,null,null,null,null,null,null,null,null,null,null,null,null,null,null,null,null,null,null,null,null,null,null,null,null,null,null,null,null,null,null,null,null,null,null,null,null,null,null,null,null,null,null,null,null,null,null,null,null,null,null,null,null,null,null,null,null,null,null,null,null,null,null,null,null,null,null,null,null,null,null,null,null,null,null,null,null,null,null,null,null,null,null,null,null,null,null,null,null,null,null,null,null,null,null,null,null,null,null,null,null,null,null,null,null,null,null,null,null,null,null,null,null,null,null,null,null,null,null,null,null,null,null,null,null,null,null,null,null,null,null,null,null,null,null,null,null,null,null,null,null,null,null,null,null,null,null,null,null,null,null,null,null,null,null,null,null,null,null,null,null,null,null,null,null,null,null,null,null,null,null,null,null,null,null,null,null,null,null,null,null,null,null,null,null,null,null,null,null,null," ТАБЛИ",null,null,null,null,null,null,null,null,null,null,null,null,null,null,null,null,"количество дней месяца",null,null,31,null,null,null,null,null,null,null,null,null,null,null,"на июль 2020 года",null,7]
[null,null,null,null,null,"ТО В ЯЧЕЙКАХ, ОКРАШЕННЫХ ЖЁЛТЫМ ЦВЕТОМ ДОЛЖНА СРАБАТЫВАТЬ ФОРМУЛА =(AI28-AI27-AI29; AI34-AI33-AI35 И Т.Д. ДО КОНЦА ТАБЛИЦЫ И ТОЛЬКО",null,null,null,null,null,null,null,null,null,null,null,null,null,null,null,null,null,null,null,null,null,null,null,null,null,null,null,null,null,null,null,null,null,null,null,null,null,null,null,null,null,null,null,null,null,null,null,null,null,null,null,null,null,null,null,null,null,null,null,null,null,null,null,null,null,null,null,null,null,null,null,null,null,null,null,null,null,null,null,null,null,null,null,null,null,null,null,null,null,null,null,null,null,null,null,null,null,null,null,null,null,null,null,null,null,null,null,null,null,null,null,null,null,null,null,null,null,null,null,null,null,null,null,null,null,null,null,null,null,null,null,null,null,null,null,null,null,null,null,null,null,null,null,null,null,null,null,null,null,null,null,null,null,null,null,null,null,null,null,null,null,null,null,null,null,null,null,null,null,null,null,null,null,null,null,null,null,null,null,null,null,null,null,null,null,null,null,null,null,null,null,null,null,null,null,null,null,null,null,null,null,null,null,null,null,null,null,null,null,null,null,null,null,null,null,null,null,null,null,null,null,null,null,null,null,null,null,null,null,"месяц",null,null,7,null,0,null,null,null,null,null,null,null,null,null,"на август 2020 года",null,8]
[null,null,null,null,null,null,"В СТРОКАХ (AI 76-AI75) ДОЛЖНА СРАБАТЫВАТЬ ФОРМУЛА =ОСТАТ(AI 76-AI75;1) ",null,null,null,null,null,null,null,null,null,null,null,null,null,null,null,null,null,null,null,null,null,null,null,null,null,null,null,null,null,null,null,null,null,null,null,null,null,null,null,null,null,null,null,null,null,null,null,null,null,null,null,null,null,null,null,null,null,null,null,null,null,null,null,null,null,null,null,null,null,null,null,null,null,null,null,null,null,null,null,null,null,null,null,null,null,null,null,null,null,null,null,null,null,null,null,null,null,null,null,null,null,null,null,null,null,null,null,null,null,null,null,null,null,null,null,null,null,null,null,null,null,null,null,null,null,null,null,null,null,null,null,null,null,null,null,null,null,null,null,null,null,null,null,null,null,null,null,null,null,null,null,null,null,null,null,null,null,null,null,null,null,null,null,null,null,null,null,null,null,null,null,null,null,null,null,null,null,null,null,null,null,null,null,null,null,null,null,null,null,null,null,null,null,null,null,null,null,null,null,null,null,null,null,null,null,null,null,null,null,null,null,null,null,null,null,null,null,null,null,null,null,null,null,null,null,null,null,null,"год",null,null,{"$f":"YEAR(A17)","v":2020},null,2.0833333333333332E-2,null,null,null,null,null,null,null,null,null,"на сентябрь 2020 года",null,9]
[null,null,null,null,null,null,null,null,null,null,null,null,null,null,null,null,null,null,null,null,null,null,null,null,null,null,null,null,null,null,null,null,null,null,null,null,null,null,null,null,null,null,null,null,null,null,null,null,null,null,null,null,null,null,null,null,null,null,null,null,null,null,null,null,null,null,null,null,null,null,null,null,null,null,null,null,null,null,null,null,null,null,null,null,null,null,null,null,null,null,null,null,null,null,null,null,null,null,null,null,null,null,null,null,null,null,null,null,null,null,null,null,null,null,null,null,null,null,null,null,null,null,null,null,null,null,null,null,null,null,null,null,null,null,null,null,null,null,null,null,null,null,null,null,null,null,null,null,null,null,null,null,null,null,null,null,null,null,null,null,null,null,null,null,null,null,null,null,null,null,null,null,null,null,null,null,null,null,null,null,null,null,null,null,null,null,null,null,null,null,null,null,null,null,null,null,null,null,null,null,null,null,null,null,null,null,null,null,null,null,null,null,null,null,null,null,null,null,null,null,null,null,null,null,null,null,null,null,null,null,null,null,null,null,null,null,null,null,null,null,6.25E-2,null,null,null,null,null,null,null,null,null,"на октябрь 2020 года",null,10]
[null,null,null,null,null,null,null,null,null,null,null,null,null,null,null,null,null,null,null,null,null,null,null,null,null,null,null,null,null,null,null,null,null,null,null,null,null,null,null,null,null,null,null,null,null,null,null,null,null,null,null,null,null,null,null,null,null,null,null,null,null,null,null,null,null,null,null,null,null,null,null,null,null,null,null,null,null,null,null,null,null,null,null,null,null,null,null,null,null,null,null,null,null,null,null,null,null,null,null,null,null,null,null,null,null,null,null,null,null,null,null,null,null,null,null,null,null,null,null,null,null,null,null,null,null,null,null,null,null,null,null,null,null,null,null,null,null,null,null,null,null,null,null,null,null,null,null,null,null,null,null,null,null,null,null,null,null,null,null,null,null,null,null,null,null,null,null,null,null,null,null,null,null,null,null,null,null,null,null,null,null,null,null,null,null,null,null,null,null,null,null,null,null,null,null,null,null,null,null,null,null,null,null,null,null,null,null,null,null,null,null,null,null,null,null,null,null,null,null,null,null,null,null,null,null,null,null,null,null,null,null,null,null,null,null,"0бед",null,null,4.1666666666666664E-2,null,0.41666666666666669,null,null,null,null,null,null,null,null,null,"на ноябрь 2020 года",null,11]
[null,null,null,null,null,null,null,null,null,null,null,null,null,null,null,null,null,null,null,null,null,null,null,null,null,null,null,null,null,null,null,null,null,null,null,null,null,null,null,null,null,null,null,null,null,null,null,null,null,null,null,null,null,null,null,null,null,null,null,null,null,null,null,null,null,null,null,null,null,null,null,null,null,null,null,null,null,null,null,null,null,null,null,null,null,null,null,null,null,null,null,null,null,null,null,null,null,null,null,null,null,null,null,null,null,null,null,null,null,null,null,null,null,null,null,null,null,null,null,null,null,null,null,null,null,null,null,null,null,null,null,null,null,null,null,null,null,null,null,null,null,null,null,null,null,null,null,null,null,null,null,null,null,null,null,null,null,null,null,null,null,null,null,null,null,null,null,null,null,null,null,null,null,null,null,null,null,null,null,null,null,null,null,null,null,null,null,null,null,null,null,null,null,null,null,null,null,null,null,null,null,null,null,null,null,null,null,null,null,null,null,null,null,null,null,null,null,null,null,null,null,null,null,null,null,null,null,null,null,null,null,null,null,null,null,null,null,null,null,null,0.45833333333333331,null,null,null,null,null,null,null,null,null,"на декабрь 2020 года",null,12]
[null,null,null,null,null,null,null,null,null,null,null,null,null,null,null,null,null,null,null,null,null,null,null,null,null,null,null,null,null,null,null,null,null,null,null,null,null,null,null,null,null,null,null,null,null,null,null,null,null,null,null,null,null,null,null,null,null,null,null,null,null,null,null,null,null,null,null,null,null,null,null,null,null,null,null,null,null,null,null,null,null,null,null,null,null,null,null,null,null,null,null,null,null,null,null,null,null,null,null,null,null,null,null,null,null,null,null,null,null,null,null,null,null,null,null,null,null,null,null,null,null,null,null,null,null,null,null,null,null,null,null,null,null,null,null,null,null,null,null,null,null,null,null,null,null,null,null,null,null,null,null,null,null,null,null,null,null,null,null,null,null,null,null,null,null,null,null,null,null,null,null,null,null,null,null,null,null,null,null,null,null,null,null,null,null,null,null,null,null,null,null,null,null,null,null,null,null,null,null,null,null,null,null,null,null,null,null,null,null,null,null,null,null,null,null,null,null,null,null,null,null,null,null,null,null,null,null,null,null,null,null,null,null,null,null,null,null,null,null,null,0.125]
[null,null,null,null,null,null,null,null,null,null,null,null,null,null,null,null,null,null,null,null,null,null,null,null,null,null,null,null,null,null,null,null,null,null,null,null,null,null,null,null,null,null,null,null,null,null,null,null,null,null,null,null,null,null,null,null,null,null,null,null,null,null,null,null,null,null,null,null,null,null,null,null,null,null,null,null,null,null,null,null,null,null,null,null,null,null,null,null,null,null,null,null,null,null,null,null,null,null,null,null,null,null,null,null,null,null,null,null,null,null,null,null,null,null,null,null,null,null,null,null,null,null,null,null,null,null,null,null,null,null,null,null,null,null,null,null,null,null,null,null,null,null,null,null,null,null,null,null,null,null,null,null,null,null,null,null,null,null,null,null,null,null,null,null,null,null,null,null,null,null,null,null,null,null,null,null,null,null,null,null,null,null,null,null,null,null,null,null,null,null,null,null,null,null,null,null,null,null,null,null,null,null,null,null,null,null,null,null,null,null,null,null,null,null,null,null,null,null,null,null,null,null,null,null,null,null,null,null,null,null,null,null,null,null,null,null,null,null,null,null,0.14583333333333334,null,null,null,null,null,null,null,null,null,"Сапожников А.С.,  управляющий участка",null,null,null,null,null,1]
["ГРАФИК",null,null,null,null,null,null,null,null,null,null,null,null,null,null,null,null,null,null,null,null,null,null,null,null,null,null,null,null,null,null,null,null,null,null,null,null,null,null,null,null,null,null,null,null,null,null,null,null,null,null,null,null,null,null,null,null,null,null,null,null,null,null,null,null,null,null,null,null,null,null,null,null,null,null,null,null,null,null,null,null,null,null,null,null,null,null,null,null,null,null,null,null,null,null,null,null,null,null,null,null,null,null,null,null,null,null,null,null,null,null,null,null,null,null,null,null,null,null,null,null,null,null,null,null,null,null,null,null,null,null,null,null,null,null,null,null,null,null,null,null,null,null,null,null,null,null,null,null,null,null,null,null,null,null,null,null,null,null,null,null,null,null,null,null,null,null,null,null,null,null,null,null,null,null,null,null,null,null,null,null,null,null,null,null,null,null,null,null,null,null,null,null,null,null,null,null,null,null,null,null,null,null,null,null,null,null,null,null,null,null,null,null,null,null,null,null,null,null,null,null,null,null,null,null,null,null,null,null,null,null,null,null,null,null,null,null,null,null,null,0.16666666666666666,null,null,null,null,null,null,null,null,null,"Сперанский А.А., слесарь-ремонтник",null,null,null,null,null,0.5]
["УЧЕТА ИСПОЛЬЗОВАНИЯ РАБОЧЕГО ВРЕМЕНИ ОБСЛУЖИВАЮЩЕГО ПЕРСОНАЛА",null,null,null,null,null,null,null,null,null,null,null,null,null,null,null,null,null,null,null,null,null,null,null,null,null,null,null,null,null,null,null,null,null,null,null,null,null,null,null,null,null,null,null,null,null,null,null,null,null,null,null,null,null,null,null,null,null,null,null,null,null,null,null,null,null,null,null,null,null,null,null,null,null,null,null,null,null,null,null,null,null,null,null,null,null,null,null,null,null,null,null,null,null,null,null,null,null,null,null,null,null,null,null,null,null,null,null,null,null,null,null,null,null,null,null,null,null,null,null,null,null,null,null,null,null,null,null,null,null,null,null,null,null,null,null,null,null,null,null,null,null,null,null,null,null,null,null,null,null,null,null,null,null,null,null,null,null,null,null,null,null,null,null,null,null,null,null,null,null,null,null,null,null,null,null,null,null,null,null,null,null,null,null,null,null,null,null,null,null,null,null,null,null,null,null,null,null,null,null,null,null,null,null,null,null,null,null,null,null,null,null,null,null,null,null,null,null,null,null,null,null,null,null,null,null,null,null,null,null,null,null,null,null,null,null,null,null,null,null,0.1875,null,null,null,null,null,null,null,null,null,"Лагутенко В.А., кассир билетный",null,null,null,null,null,0.25]
["2020-07-01",null,null,null,null,null,null,null,null,null,null,null,null,null,null,null,null,null,null,null,null,null,null,null,null,null,null,null,null,null,null,null,null,null,null,null,null,null,null,null,null,null,null,null,null,null,null,null,null,null,null,null,null,null,null,null,null,null,null,null,null,null,null,null,null,null,null,null,null,null,null,null,null,null,null,null,null,null,null,null,null,null,null,null,null,null,null,null,null,null,null,null,null,null,null,null,null,null,null,null,null,null,null,null,null,null,null,null,null,null,null,null,null,null,null,null,null,null,null,null,null,null,null,null,null,null,null,null,null,null,null,null,null,null,null,null,null,null,null,null,null,null,null,null,null,null,null,null,null,null,null,null,null,null,null,null,null,null,null,null,null,null,null,null,null,null,null,null,null,null,null,null,null,null,null,null,null,null,null,null,null,null,null,null,null,null,null,null,null,null,null,null,null,null,null,null,null,null,null,null,null,null,null,null,null,null,null,null,null,null,null,null,null,null,null,null,null,null,null,null,null,null,null,null,null,null,null,null,null,null,null,null,null,null,null,null,null,null,null,null,0.20833333333333334,null,null,null,null,null,null,null,null,null,"Купцова Г.И., кассир билетный"]
[null,null,null,null,null,null,null,null,null,null,null,null,null,null,null,null,null,null,null,null,null,null,null,null,null,null,null,null,null,null,null,null,null,null,null,null,null,null,null,null,null,null,null,null,null,null,null,null,null,null,null,null,null,null,null,null,null,null,null,null,null,null,null,null,null,null,null,null,null,null,null,null,null,null,null,null,null,null,null,null,null,null,null,null,null,null,null,null,null,null,null,null,null,null,null,null,null,null,null,null,null,null,null,null,null,null,null,null,null,null,null,null,null,null,null,null,null,null,null,null,null,null,null,null,null,null,null,null,null,null,null,null,null,null,null,null,null,null,null,null,null,null,null,null,null,null,null,null,null,null,null,null,null,null,null,null,null,null,null,null,null,null,null,null,null,null,null,null,null,null,null,null,null,null,null,null,null,null,null,null,null,null,null,null,null,null,null,null,null,null,null,null,null,null,null,null,null,null,null,null,null,null,null,null,null,null,null,null,null,null,null,null,null,null,null,null,null,null,null,null,null,null,null,null,null,null,null,null,null,null,null,null,null,null,null,null,null,null,null,null,0.22916666666666666,null,null,null,null,null,null,null,null,null,"Кипкаева Л.А., дворник"]
["№ п/п",null,null,null,null,"Фамилия Инициалы",null,null,null,null,null,null,null,null,null,null,null,null,null,null,null,null,null,"Ставка",null,null,null,null,"1900-01-01",null,null,null,null,null,2,null,null,null,null,null,"1900-01-03",null,null,null,null,null,4,null,null,null,null,null,5,null,null,null,null,null,6,null,null,null,null,null,7,null,null,null,null,null,8,null,null,null,null,null,9,null,null,null,null,null,10,null,null,null,null,null,11,null,null,null,null,null,12,null,null,null,null,null,13,null,null,null,null,null,14,null,null,null,null,null,15,null,null,null,null,null,16,null,null,null,null,null,17,null,null,null,null,null,18,null,null,null,null,null,19,null,null,null,null,null,20,null,null,null,null,null,21,null,null,null,null,null,22,null,null,null,null,null,23,null,null,null,null,null,24,null,null,null,null,null,25,null,null,null,null,null,26,null,null,null,null,null,27,null,null,null,null,null,28,null,null,null,null,null,{"$f":"IF(29<=$IE$7,29,\"-\")","v":29},null,null,null,null,null,{"$f":"IF(30<=$IE$7,30,\"-\")","v":30},null,null,null,null,null,{"$f":"IF(31<=$IE$7,31,\"-\")","v":31},null,null,null,null,null,"ВСЕГО",null,null,null,null,null,null,null,null,null,null,null,null,null,null,null,null,null,null,null,null,null,null,null,null,null,0.25,null,null,null,null,null,null,null,null,null,"Морозова Г.Н., контролёр-посадчик аттракциона"]
[null,null,null,null,null,null,null,null,null,null,null,null,null,null,null,null,null,null,null,null,null,null,null,null,null,null,null,null,null,null,null,null,null,null,null,null,null,null,null,null,null,null,null,null,null,null,null,null,null,null,null,null,null,null,null,null,null,null,null,null,null,null,null,null,null,null,null,null,null,null,null,null,null,null,null,null,null,null,null,null,null,null,null,null,null,null,null,null,null,null,null,null,null,null,null,null,null,null,null,null,null,null,null,null,null,null,null,null,null,null,null,null,null,null,null,null,null,null,null,null,null,null,null,null,null,null,null,null,null,null,null,null,null,null,null,null,null,null,null,null,null,null,null,null,null,null,null,null,null,null,null,null,null,null,null,null,null,null,null,null,null,null,null,null,null,null,null,null,null,null,null,null,null,null,null,null,null,null,null,null,null,null,null,null,null,null,null,null,null,null,null,null,null,null,null,null,null,null,null,null,null,null,null,null,null,null,null,null,null,null,null,null,null,null,"дней",null,null,null,null,null,null,null,null,null,null,null,null,null,null,null,null,null,"часов",null,null,null,null,null,null,null,0.27083333333333331,null,null,null,null,null,null,null,null,null,"Нурлиева Е.А., котролёр-посадчик аттракциона"]
[null,null,null,null,null,null,null,null,null,null,null,null,null,null,null,null,null,null,null,null,null,null,null,null,null,null,null,null,{"$f":"IFERROR($A$17+AC19-1,\"-\")","v":"2020-07-01"},null,null,null,null,null,{"$f":"IFERROR($A$17+AI19-1,\"-\")","v":"2020-07-02"},null,null,null,null,null,{"$f":"IFERROR($A$17+AO19-1,\"-\")","v":"2020-07-03"},null,null,null,null,null,{"$f":"IFERROR($A$17+AU19-1,\"-\")","v":"2020-07-04"},null,null,null,null,null,{"$f":"IFERROR($A$17+BA19-1,\"-\")","v":"2020-07-05"},null,null,null,null,null,{"$f":"IFERROR($A$17+BG19-1,\"-\")","v":"2020-07-06"},null,null,null,null,null,{"$f":"IFERROR($A$17+BM19-1,\"-\")","v":"2020-07-07"},null,null,null,null,null,{"$f":"IFERROR($A$17+BS19-1,\"-\")","v":"2020-07-08"},null,null,null,null,null,{"$f":"IFERROR($A$17+BY19-1,\"-\")","v":"2020-07-09"},null,null,null,null,null,{"$f":"IFERROR($A$17+CE19-1,\"-\")","v":"2020-07-10"},null,null,null,null,null,{"$f":"IFERROR($A$17+CK19-1,\"-\")","v":"2020-07-11"},null,null,null,null,null,{"$f":"IFERROR($A$17+CQ19-1,\"-\")","v":"2020-07-12"},null,null,null,null,null,{"$f":"IFERROR($A$17+CW19-1,\"-\")","v":"2020-07-13"},null,null,null,null,null,{"$f":"IFERROR($A$17+DC19-1,\"-\")","v":"2020-07-14"},null,null,null,null,null,{"$f":"IFERROR($A$17+DI19-1,\"-\")","v":"2020-07-15"},null,null,null,null,null,{"$f":"IFERROR($A$17+DO19-1,\"-\")","v":"2020-07-16"},null,null,null,null,null,{"$f":"IFERROR($A$17+DU19-1,\"-\")","v":"2020-07-17"},null,null,null,null,null,{"$f":"IFERROR($A$17+EA19-1,\"-\")","v":"2020-07-18"},null,null,null,null,null,{"$f":"IFERROR($A$17+EG19-1,\"-\")","v":"2020-07-19"},null,null,null,null,null,{"$f":"IFERROR($A$17+EM19-1,\"-\")","v":"2020-07-20"},null,null,null,null,null,{"$f":"IFERROR($A$17+ES19-1,\"-\")","v":"2020-07-21"},null,null,null,null,null,{"$f":"IFERROR($A$17+EY19-1,\"-\")","v":"2020-07-22"},null,null,null,null,null,{"$f":"IFERROR($A$17+FE19-1,\"-\")","v":"2020-07-23"},null,null,null,null,null,{"$f":"IFERROR($A$17+FK19-1,\"-\")","v":"2020-07-24"},null,null,null,null,null,{"$f":"IFERROR($A$17+FQ19-1,\"-\")","v":"2020-07-25"},null,null,null,null,null,{"$f":"IFERROR($A$17+FW19-1,\"-\")","v":"2020-07-26"},null,null,null,null,null,{"$f":"IFERROR($A$17+GC19-1,\"-\")","v":"2020-07-27"},null,null,null,null,null,{"$f":"IFERROR($A$17+GI19-1,\"-\")","v":"2020-07-28"},null,null,null,null,null,{"$f":"IFERROR($A$17+GO19-1,\"-\")","v":"2020-07-29"},null,null,null,null,null,{"$f":"IFERROR($A$17+GU19-1,\"-\")","v":"2020-07-30"},null,null,null,null,null,null,null,null,null,null,null,null,null,null,null,null,null,null,null,null,null,null,null,null,null,null,null,null,null,null,null,null,184,null,null,null,null,1]
[null,null,null,null,null,null,null,null,null,null,null,null,null,null,null,null,null,null,null,null,null,null,null,null,null,null,null,null,"В",null,null,null,null,null,null,null,null,null,null,null,"В",null,null,null,null,null,null,null,null,null,null,null,null,null,null,null,null,null,"В",null,null,null,null,null,null,null,null,null,null,null,"В",null,null,null,null,null,null,null,null,null,null,null,"В",null,null,null,null,null,null,null,null,null,null,null,null,null,null,null,null,null,"В",null,null,null,null,null,null,null,null,null,null,null,"В",null,null,null,null,null,null,null,null,null,null,null,"В",null,null,null,null,null,null,null,null,null,null,null,null,null,null,null,null,null,"В",null,null,null,null,null,null,null,null,null,null,null,"В",null,null,null,null,null,null,null,null,null,null,null,"В",null,null,null,null,null,null,null,null,null,null,null,null,null,null,null,null,null,"В",null,null,null,null,null,null,null,null,null,null,null,"В"]
[null,null,null,null,null,null,null,null,null,null,null,null,null,null,null,null,null,null,null,null,null,null,null,null,null,null,null,null,"В",null,null,null,null,null,null,null,null,null,null,null,"В",null,null,null,null,null,null,null,null,null,null,null,null,null,null,null,null,null,"В",null,null,null,null,null,null,null,null,null,null,null,"В",null,null,null,null,null,null,null,null,null,null,null,"В",null,null,null,null,null,null,null,null,null,null,null,null,null,null,null,null,null,"В",null,null,null,null,null,null,null,null,null,null,null,"В",null,null,null,null,null,null,null,null,null,null,null,"В",null,null,null,null,null,null,null,null,null,null,null,null,null,null,null,null,null,"В",null,null,null,null,null,null,null,null,null,null,null,"В",null,null,null,null,null,null,null,null,null,null,null,"В",null,null,null,null,null,null,null,null,null,null,null,null,null,null,null,null,null,"В",null,null,null,null,null,null,null,null,null,null,null,"В"]
[null,null,null,null,null,null,null,null,null,null,null,null,null,null,null,null,null,null,null,null,null,null,null,null,null,null,null,null,"В",null,null,null,null,null,null,null,null,null,null,null,"В",null,null,null,null,null,null,null,null,null,null,null,null,null,null,null,null,null,"В",null,null,null,null,null,null,null,null,null,null,null,"В",null,null,null,null,null,null,null,null,null,null,null,"В",null,null,null,null,null,null,null,null,null,null,null,null,null,null,null,null,null,"В",null,null,null,null,null,null,null,null,null,null,null,"В",null,null,null,null,null,null,null,null,null,null,null,"В",null,null,null,null,null,null,null,null,null,null,null,null,null,null,null,null,null,"В",null,null,null,null,null,null,null,null,null,null,null,"В",null,null,null,null,null,null,null,null,null,null,null,"В",null,null,null,null,null,null,null,null,null,null,null,null,null,null,null,null,null,"В",null,null,null,null,null,null,null,null,null,null,null,"В"]
[]
[]
[1,null,null,null,null,null,null,null,null,null,null,null,null,null,null,null,null,null,null,null,null,null,null,1,null,null,null,null,"ОТ",null,null,null,null,null,0.66666666666666663,null,null,null,null,null,null,null,null,null,null,null,null,null,null,null,null,null,null,null,null,null,null,null,null,null,null,null,null,null,null,null,null,null,null,null,null,null,null,null,null,null,null,null,null,null,null,null,null,null,null,null,null,null,null,null,null,null,null,null,null,null,null,null,null,null,null,null,null,null,null,null,null,null,null,null,null,null,null,null,null,null,null,null,null,null,null,null,null,null,null,null,null,null,null,null,null,null,null,null,null,null,null,null,null,null,null,null,null,null,null,null,null,null,null,null,null,null,null,null,null,null,null,null,null,null,null,null,null,null,null,null,null,null,null,null,null,null,null,null,null,null,null,null,null,null,null,null,null,null,null,null,null,null,null,null,null,null,null,null,null,null,null,null,null,null,null,null,null,null,null,null,null,null,null,null,null,null,null,null,{"$f":"COUNT(AC27:HF27)","v":1},null,null,null,null,null,null,null,null,null,null,null,null,null,null,null,null,null,{"$f":"SUM(IFERROR(AC28:HF28-AC27:HF27-AC29:HF29,0))","v":0.33333333333333337},null,null,null,null,null,null,null,4.1666666666666664E-2,null,null,null,null,null,null,null,null,null,"Хомченко Л.Е., контролёр-посадчик аттракциона"]
[null,null,null,null,null,null,null,null,null,null,null,null,null,null,null,null,null,null,null,null,null,null,null,null,null,null,null,null,"ОТ",null,null,null,null,null,1,null,null,null,null,null,null,null,null,null,null,null,null,null,null,null,null,null,null,null,null,null,null,null,null,null,null,null,null,null,null,null,null,null,null,null,null,null,null,null,null,null,null,null,null,null,null,null,null,null,null,null,null,null,null,null,null,null,null,null,null,null,null,null,null,null,null,null,null,null,null,null,null,null,null,null,null,null,null,null,null,null,null,null,null,null,null,null,null,null,null,null,null,null,null,null,null,null,null,null,null,null,null,null,null,null,null,null,null,null,null,null,null,null,null,null,null,null,null,null,null,null,null,null,null,null,null,null,null,null,null,null,null,null,null,null,null,null,null,null,null,null,null,null,null,null,null,null,null,null,null,null,null,null,null,null,null,null,null,null,null,null,null,null,null,null,null,null,null,null,null,null,null,null,null,null,null,null,null,null,null,null,null,null,null,null,null,null,null,null,null,null,null,null,null,null,null,null,null,null,null,null,null,null,null,null,0.5,null,null,null,null,null,null,null,null,null,"Кондратюк Н.В., сторож"]
[null,null,null,null,null,null,null,null,null,null,null,null,null,null,null,null,null,null,null,null,null,null,null,"обед","обед",null,null,null,null,null,null,null,null,null,null,null,null,null,null,null,null,null,null,null,null,null,null,null,null,null,null,null,null,null,null,null,null,null,null,null,null,null,null,null,null,null,null,null,null,null,null,null,null,null,null,null,null,null,null,null,null,null,null,null,null,null,null,null,null,null,null,null,null,null,null,null,null,null,null,null,null,null,null,null,null,null,null,null,null,null,null,null,null,null,null,null,null,null,null,null,null,null,null,null,null,null,null,null,null,null,null,null,null,null,null,null,null,null,null,null,null,null,null,null,null,null,null,null,null,null,null,null,null,null,null,null,null,null,null,null,null,null,null,null,null,null,null,null,null,null,null,null,null,null,null,null,null,null,null,null,null,null,null,null,null,null,null,null,null,null,null,null,null,null,null,null,null,null,null,null,null,null,null,null,null,null,null,null,null,null,null,null,null,null,null,null,null,null,null,null,null,null,null,null,null,null,null,null,null,null,null,null,null,null,null,null,null,null,null,null,0.33333333333333331]
[null,null,null,null,null,null,null,null,null,null,null,null,null,null,null,null,null,null,null,null,null,null,null,null,"р.д.",null,null,null,{"$f":"(AC28-AC27-AC29)","v":{"$error":"#VALUE!"}},null,null,null,null,null,{"$f":"(AI28-AI27-AI29)","v":"08:00:00"},null,null,null,null,null,{"$f":"(AO28-AO27-AO29)","v":"00:00:00"},null,null,null,null,null,"00:00:00",null,null,null,null,null,"00:00:00",null,null,null,null,null,"00:00:00",null,null,null,null,null,"00:00:00",null,null,null,null,null,"00:00:00",null,null,null,null,null,"00:00:00",null,null,null,null,null,"00:00:00",null,null,null,null,null,"00:00:00",null,null,null,null,null,"00:00:00",null,null,null,null,null,{"$f":"(CW28-CW27-CW29)","v":"00:00:00"},null,null,null,null,null,"00:00:00",null,null,null,null,null,"00:00:00",null,null,null,null,null,"00:00:00",null,null,null,null,null,"00:00:00",null,null,null,null,null,"00:00:00",null,null,null,null,null,"00:00:00",null,null,null,null,null,"00:00:00",null,null,null,null,null,"00:00:00",null,null,null,null,null,"00:00:00",null,null,null,null,null,"00:00:00",null,null,null,null,null,{"$f":"(FK28-FK27-FK29)","v":"00:00:00"},null,null,null,null,null,"00:00:00",null,null,null,null,null,"00:00:00",null,null,null,null,null,"00:00:00",null,null,null,null,null,"00:00:00",null,null,null,null,null,"00:00:00",null,null,null,null,null,"00:00:00",null,null,null,null,null,{"$f":"(HA28-HA27-HA29)","v":"00:00:00"},null,null,null,null,null,null,null,null,null,null,null,null,null,null,null,null,null,null,null,null,null,null,null,{"$f":"SUM(AC30:GZ30)","v":{"$error":"#VALUE!"}},null,null,null,null,null,null,null,0.66666666666666663]
[null,null,null,null,null,null,null,null,null,null,null,null,null,null,null,null,null,null,null,null,null,null,null,"пр","пр",null,null,null,null,null,null,null,null,null,null,null,null,null,null,null,null,null,null,null,null,null,null,null,null,null,null,null,null,null,null,null,null,null,null,null,null,null,null,null,null,null,null,null,null,null,null,null,null,null,null,null,null,null,null,null,null,null,null,null,null,null,null,null,null,null,null,null,null,null,null,null,null,null,null,null,null,null,null,null,null,null,null,null,null,null,null,null,null,null,null,null,null,null,null,null,null,null,null,null,null,null,null,null,null,null,null,null,null,null,null,null,null,null,null,null,null,null,null,null,null,null,null,null,null,null,null,null,null,null,null,null,null,null,null,null,null,null,null,null,null,null,null,null,null,null,null,null,null,null,null,null,null,null,null,null,null,null,null,null,null,null,null,null,null,null,null,null,null,null,null,null,null,null,null,null,null,null,null,null,null,null,null,null,null,null,null,null,null,null,{"$f":"SUM(AC31:HF31)","v":"00:00:00"},null,null,null,null,null,null,null,null,null,null,null,null,null,null,null,null,null,null,null,null,null,null,null,null,null,0.75]
[null,null,null,null,null,null,null,null,null,null,null,null,null,null,null,null,null,null,null,null,null,null,null,null,"от",null,null,null,null,null,null,null,null,null,null,null,null,null,null,null,null,null,null,null,null,null,null,null,null,null,null,null,null,null,null,null,null,null,null,null,null,null,null,null,null,null,null,null,null,null,null,null,null,null,null,null,null,null,null,null,null,null,null,null,null,null,null,null,null,null,null,null,null,null,null,null,null,null,null,null,null,null,null,null,null,null,null,null,null,null,null,null,null,null,null,null,null,null,null,null,null,null,null,null,null,null,null,null,null,null,null,null,null,null,null,null,null,null,null,null,null,null,null,null,null,null,null,null,null,null,null,null,null,null,null,null,null,null,null,null,null,null,null,null,null,null,null,null,null,null,null,null,null,null,null,null,null,null,null,null,null,null,null,null,null,null,null,null,null,null,null,null,null,null,null,null,null,null,null,null,null,null,null,null,null,null,null,null,null,null,null,null,null,null,{"$f":"COUNTIF(AC33:HF33,\"=От\")","v":0},null,null,null,null,null,null,null,null,null,null,null,null,null,null,null,null,null,null,null,null,null,null,null,null,null,0.79166666666666663]
[2,null,null,null,null,null,null,null,null,null,null,null,null,null,null,null,null,null,null,null,null,null,null,1,null,null,null,null,null,null,null,null,null,null,null,null,null,null,null,null,null,null,null,null,null,null,null,null,null,null,null,null,null,null,null,null,null,null,null,null,null,null,null,null,null,null,null,null,null,null,null,null,null,null,null,null,null,null,null,null,null,null,null,null,null,null,null,null,null,null,null,null,null,null,null,null,null,null,null,null,null,null,null,null,null,null,null,null,null,null,null,null,null,null,null,null,null,null,null,null,null,null,null,null,null,null,null,null,null,null,null,null,null,null,null,null,null,null,null,null,null,null,null,null,null,null,null,null,null,null,null,null,null,null,null,null,null,null,null,null,null,null,null,null,null,null,null,null,null,null,null,null,null,null,null,null,null,null,null,null,null,null,null,null,null,null,null,null,null,null,null,null,null,null,null,null,null,null,null,null,null,null,null,null,null,null,null,null,null,null,null,null,null,null,{"$f":"COUNT(AC33:HF33)","v":0},null,null,null,null,null,null,null,null,null,null,null,null,null,null,null,null,null,{"$f":"SUM(IFERROR(AC34:HF34-AC33:HF33-AC35:HF35,0))","v":0},null,null,null,null,null,null,null,0.83333333333333337]
[null,null,null,null,null,null,null,null,null,null,null,null,null,null,null,null,null,null,null,null,null,null,null,null,null,null,null,null,null,null,null,null,null,null,null,null,null,null,null,null,null,null,null,null,null,null,null,null,null,null,null,null,null,null,null,null,null,null,null,null,null,null,null,null,null,null,null,null,null,null,null,null,null,null,null,null,null,null,null,null,null,null,null,null,null,null,null,null,null,null,null,null,null,null,null,null,null,null,null,null,null,null,null,null,null,null,null,null,null,null,null,null,null,null,null,null,null,null,null,null,null,null,null,null,null,null,null,null,null,null,null,null,null,null,null,null,null,null,null,null,null,null,null,null,null,null,null,null,null,null,null,null,null,null,null,null,null,null,null,null,null,null,null,null,null,null,null,null,null,null,null,null,null,null,null,null,null,null,null,null,null,null,null,null,null,null,null,null,null,null,null,null,null,null,null,null,null,null,null,null,null,null,null,null,null,null,null,null,null,null,null,null,null,null,null,null,null,null,null,null,null,null,null,null,null,null,null,null,null,null,null,null,null,null,null,null,null,null,null,null,0.875]
[null,null,null,null,null,null,null,null,null,null,null,null,null,null,null,null,null,null,null,null,null,null,null,"обед","обед",null,null,null,null,null,null,null,null,null,null,null,null,null,null,null,null,null,null,null,null,null,null,null,null,null,null,null,null,null,null,null,null,null,null,null,null,null,null,null,null,null,null,null,null,null,null,null,null,null,null,null,null,null,null,null,null,null,null,null,null,null,null,null,null,null,null,null,null,null,null,null,null,null,null,null,null,null,null,null,null,null,null,null,null,null,null,null,null,null,null,null,null,null,null,null,null,null,null,null,null,null,null,null,null,null,null,null,null,null,null,null,null,null,null,null,null,null,null,null,null,null,null,null,null,null,null,null,null,null,null,null,null,null,null,null,null,null,null,null,null,null,null,null,null,null,null,null,null,null,null,null,null,null,null,null,null,null,null,null,null,null,null,null,null,null,null,null,null,null,null,null,null,null,null,null,null,null,null,null,null,null,null,null,null,null,null,null,null,null,null,null,null,null,null,null,null,null,null,null,null,null,null,null,null,null,null,null,null,null,null,null,null,null,null,null,0.91666666666666663]
[null,null,null,null,null,null,null,null,null,null,null,null,null,null,null,null,null,null,null,null,null,null,null,null,"р.д.",null,null,null,{"$f":"(AC34-AC33-AC35)","v":"00:00:00"},null,null,null,null,null,"00:00:00",null,null,null,null,null,"00:00:00",null,null,null,null,null,"00:00:00",null,null,null,null,null,"00:00:00",null,null,null,null,null,"00:00:00",null,null,null,null,null,"00:00:00",null,null,null,null,null,"00:00:00",null,null,null,null,null,"00:00:00",null,null,null,null,null,"00:00:00",null,null,null,null,null,"00:00:00",null,null,null,null,null,{"$f":"(CQ34-CQ33-CQ35)","v":"00:00:00"},null,null,null,null,null,"00:00:00",null,null,null,null,null,"00:00:00",null,null,null,null,null,"00:00:00",null,null,null,null,null,"00:00:00",null,null,null,null,null,"00:00:00",null,null,null,null,null,"00:00:00",null,null,null,null,null,"00:00:00",null,null,null,null,null,"00:00:00",null,null,null,null,null,"00:00:00",null,null,null,null,null,"00:00:00",null,null,null,null,null,{"$f":"(FE34-FE33-FE35)","v":"00:00:00"},null,null,null,null,null,"00:00:00",null,null,null,null,null,"00:00:00",null,null,null,null,null,"00:00:00",null,null,null,null,null,"00:00:00",null,null,null,null,null,"00:00:00",null,null,null,null,null,"00:00:00",null,null,null,null,null,"00:00:00",null,null,null,null,null,"00:00:00",null,null,null,null,null,null,null,null,null,null,null,null,null,null,null,null,null,null,null,null,null,null,null,{"$f":"SUM(AC36:GZ36)","v":0},null,null,null,null,null,null,null,0.95833333333333337]
[null,null,null,null,null,null,null,null,null,null,null,null,null,null,null,null,null,null,null,null,null,null,null,"пр","пр",null,null,null,null,null,null,null,null,null,null,null,null,null,null,null,null,null,null,null,null,null,null,null,null,null,null,null,null,null,null,null,null,null,null,null,null,null,null,null,null,null,null,null,null,null,null,null,null,null,null,null,null,null,null,null,null,null,null,null,null,null,null,null,null,null,null,null,null,null,null,null,null,null,null,null,null,null,null,null,null,null,null,null,null,null,null,null,null,null,null,null,null,null,null,null,null,null,null,null,null,null,null,null,null,null,null,null,null,null,null,null,null,null,null,null,null,null,null,null,null,null,null,null,null,null,null,null,null,null,null,null,null,null,null,null,null,null,null,null,null,null,null,null,null,null,null,null,null,null,null,null,null,null,null,null,null,null,null,null,null,null,null,null,null,null,null,null,null,null,null,null,null,null,null,null,null,null,null,null,null,null,null,null,null,null,null,null,null,null,{"$f":"SUM(AC37:HF37)","v":"00:00:00"}]
[null,null,null,null,null,null,null,null,null,null,null,null,null,null,null,null,null,null,null,null,null,null,null,null,"от",null,null,null,null,null,null,null,null,null,null,null,null,null,null,null,null,null,null,null,null,null,null,null,null,null,null,null,null,null,null,null,null,null,null,null,null,null,null,null,null,null,null,null,null,null,null,null,null,null,null,null,null,null,null,null,null,null,null,null,null,null,null,null,null,null,null,null,null,null,null,null,null,null,null,null,null,null,null,null,null,null,null,null,null,null,null,null,null,null,null,null,null,null,null,null,null,null,null,null,null,null,null,null,null,null,null,null,null,null,null,null,null,null,null,null,null,null,null,null,null,null,null,null,null,null,null,null,null,null,null,null,null,null,null,null,null,null,null,null,null,null,null,null,null,null,null,null,null,null,null,null,null,null,null,null,null,null,null,null,null,null,null,null,null,null,null,null,null,null,null,null,null,null,null,null,null,null,null,null,null,null,null,null,null,null,null,null,null,null,{"$f":"COUNTIF(AC39:HF39,\"=От\")","v":0}]
[3,null,null,null,null,null,null,null,null,null,null,null,null,null,null,null,null,null,null,null,null,null,null,1,null,null,null,null,null,null,null,null,null,null,null,null,null,null,null,null,null,null,null,null,null,null,null,null,null,null,null,null,null,null,null,null,null,null,null,null,null,null,null,null,null,null,null,null,null,null,null,null,null,null,null,null,null,null,null,null,null,null,null,null,null,null,null,null,null,null,null,null,null,null,null,null,null,null,null,null,null,null,null,null,null,null,null,null,null,null,null,null,null,null,null,null,null,null,null,null,null,null,null,null,null,null,null,null,null,null,null,null,null,null,null,null,null,null,null,null,null,null,null,null,null,null,null,null,null,null,null,null,null,null,null,null,null,null,null,null,null,null,null,null,null,null,null,null,null,null,null,null,null,null,null,null,null,null,null,null,null,null,null,null,null,null,null,null,null,null,null,null,null,null,null,null,null,null,null,null,null,null,null,null,null,null,null,null,null,null,null,null,null,null,{"$f":"COUNT(AC39:HF39)","v":0},null,null,null,null,null,null,null,null,null,null,null,null,null,null,null,null,null,{"$f":"SUM(IFERROR(AC40:HF40-AC39:HF39-AC41:HF41,0))","v":0}]
[]
[null,null,null,null,null,null,null,null,null,null,null,null,null,null,null,null,null,null,null,null,null,null,null,"обед","обед",null,null,null,null,null,null,null,null,null,null,null,null,null,null,null,null,null,null,null,null,null,null,null,null,null,null,null,null,null,null,null,null,null,null,null,null,null,null,null,null,null,null,null,null,null,null,null,null,null,null,null,null,null,null,null,null,null,null,null,null,null,null,null,null,null,null,null,null,null,null,null,null,null,null,null,null,null,null,null,null,null,null,null,null,null,null,null,null,null,null,null,null,null,null,null,null,null,null,null,null,null,null,null,null,null,null,null,null,null,null,null,null,null,null,null,null,null,null,null,null,null,null,null,null,null,null,null,null,null,null,null,null,null,null,null,null,null,null,null,null,null,null,null,null,null,null,null,null,null,null,null,null,null,null,null,null,null,null,null,null,null,null,null,null,null,null,null,null,null,null,null,null,null,null,null,null,null,null,null,null,null,null,null,null,null,null,null,null,null,null,null,null,null,null,null,null,null,null,null,null,null,null,null,null,null,null,null,null,null,null,null,null,null,null,null,0.3125]
[null,null,null,null,null,null,null,null,null,null,null,null,null,null,null,null,null,null,null,null,null,null,null,null,"р.д.",null,null,null,{"$f":"(AC40-AC39-AC41)","v":"00:00:00"},null,null,null,null,null,{"$f":"(AI40-AI39-AI41)","v":"00:00:00"},null,null,null,null,null,{"$f":"(AO40-AO39-AO41)","v":"00:00:00"},null,null,null,null,null,{"$f":"(AU40-AU39-AU41)","v":"00:00:00"},null,null,null,null,null,{"$f":"(BA40-BA39-BA41)","v":"00:00:00"},null,null,null,null,null,{"$f":"(BG40-BG39-BG41)","v":"00:00:00"},null,null,null,null,null,{"$f":"(BM40-BM39-BM41)","v":"00:00:00"},null,null,null,null,null,{"$f":"(BS40-BS39-BS41)","v":"00:00:00"},null,null,null,null,null,{"$f":"(BY40-BY39-BY41)","v":"00:00:00"},null,null,null,null,null,{"$f":"(CE40-CE39-CE41)","v":"00:00:00"},null,null,null,null,null,{"$f":"(CK40-CK39-CK41)","v":"00:00:00"},null,null,null,null,null,{"$f":"(CQ40-CQ39-CQ41)","v":"00:00:00"},null,null,null,null,null,{"$f":"(CW40-CW39-CW41)","v":"00:00:00"},null,null,null,null,null,{"$f":"(DC40-DC39-DC41)","v":"00:00:00"},null,null,null,null,null,{"$f":"(DI40-DI39-DI41)","v":"00:00:00"},null,null,null,null,null,{"$f":"(DO40-DO39-DO41)","v":"00:00:00"},null,null,null,null,null,{"$f":"(DU40-DU39-DU41)","v":"00:00:00"},null,null,null,null,null,{"$f":"(EA40-EA39-EA41)","v":"00:00:00"},null,null,null,null,null,{"$f":"(EG40-EG39-EG41)","v":"00:00:00"},null,null,null,null,null,{"$f":"(EM40-EM39-EM41)","v":"00:00:00"},null,null,null,null,null,{"$f":"(ES40-ES39-ES41)","v":"00:00:00"},null,null,null,null,null,{"$f":"(EY40-EY39-EY41)","v":"00:00:00"},null,null,null,null,null,{"$f":"(FE40-FE39-FE41)","v":"00:00:00"},null,null,null,null,null,{"$f":"(FK40-FK39-FK41)","v":"00:00:00"},null,null,null,null,null,{"$f":"(FQ40-FQ39-FQ41)","v":"00:00:00"},null,null,null,null,null,{"$f":"(FW40-FW39-FW41)","v":"00:00:00"},null,null,null,null,null,{"$f":"(GC40-GC39-GC41)","v":"00:00:00"},null,null,null,null,null,{"$f":"(GI40-GI39-GI41)","v":"00:00:00"},null,null,null,null,null,{"$f":"(GO40-GO39-GO41)","v":"00:00:00"},null,null,null,null,null,{"$f":"(GU40-GU39-GU41)","v":"00:00:00"},null,null,null,null,null,{"$f":"(HA40-HA39-HA41)","v":"00:00:00"},null,null,null,null,null,null,null,null,null,null,null,null,null,null,null,null,null,null,null,null,null,null,null,{"$f":"SUM(AC42:GZ42)","v":0},null,null,null,null,null,null,null,0.375]
[null,null,null,null,null,null,null,null,null,null,null,null,null,null,null,null,null,null,null,null,null,null,null,"пр","пр",null,null,null,null,null,null,null,null,null,null,null,null,null,null,null,null,null,null,null,null,null,null,null,null,null,null,null,null,null,null,null,null,null,null,null,null,null,null,null,null,null,null,null,null,null,null,null,null,null,null,null,null,null,null,null,null,null,null,null,null,null,null,null,null,null,null,null,null,null,null,null,null,null,null,null,null,null,null,null,null,null,null,null,null,null,null,null,null,null,null,null,null,null,null,null,null,null,null,null,null,null,null,null,null,null,null,null,null,null,null,null,null,null,null,null,null,null,null,null,null,null,null,null,null,null,null,null,null,null,null,null,null,null,null,null,null,null,null,null,null,null,null,null,null,null,null,null,null,null,null,null,null,null,null,null,null,null,null,null,null,null,null,null,null,null,null,null,null,null,null,null,null,null,null,null,null,null,null,null,null,null,null,null,null,null,null,null,null,null,{"$f":"SUM(AC43:HF43)","v":"00:00:00"},null,null,null,null,null,null,null,null,null,null,null,null,null,null,null,null,null,null,null,null,null,null,null,null,null,0.48958333333333331]
[null,null,null,null,null,null,null,null,null,null,null,null,null,null,null,null,null,null,null,null,null,null,null,null,"от",null,null,null,null,null,null,null,null,null,null,null,null,null,null,null,null,null,null,null,null,null,null,null,null,null,null,null,null,null,null,null,null,null,null,null,null,null,null,null,null,null,null,null,null,null,null,null,null,null,null,null,null,null,null,null,null,null,null,null,null,null,null,null,null,null,null,null,null,null,null,null,null,null,null,null,null,null,null,null,null,null,null,null,null,null,null,null,null,null,null,null,null,null,null,null,null,null,null,null,null,null,null,null,null,null,null,null,null,null,null,null,null,null,null,null,null,null,null,null,null,null,null,null,null,null,null,null,null,null,null,null,null,null,null,null,null,null,null,null,null,null,null,null,null,null,null,null,null,null,null,null,null,null,null,null,null,null,null,null,null,null,null,null,null,null,null,null,null,null,null,null,null,null,null,null,null,null,null,null,null,null,null,null,null,null,null,null,null,null,{"$f":"COUNTIF(AC45:HF45,\"=От\")","v":0},null,null,null,null,null,null,null,null,null,null,null,null,null,null,null,null,null,null,null,null,null,null,null,null,null,0.54166666666666663]
[4,null,null,null,null,null,null,null,null,null,null,null,null,null,null,null,null,null,null,null,null,null,null,1,null,null,null,null,null,null,null,null,null,null,null,null,null,null,null,null,null,null,null,null,null,null,null,null,null,null,null,null,null,null,null,null,null,null,null,null,null,null,null,null,null,null,null,null,null,null,null,null,null,null,null,null,null,null,null,null,null,null,null,null,null,null,null,null,null,null,null,null,null,null,null,null,null,null,null,null,null,null,null,null,null,null,null,null,null,null,null,null,null,null,null,null,null,null,null,null,null,null,null,null,null,null,null,null,null,null,null,null,null,null,null,null,null,null,null,null,null,null,null,null,null,null,null,null,null,null,null,null,null,null,null,null,null,null,null,null,null,null,null,null,null,null,null,null,null,null,null,null,null,null,null,null,null,null,null,null,null,null,null,null,null,null,null,null,null,null,null,null,null,null,null,null,null,null,null,null,null,null,null,null,null,null,null,null,null,null,null,null,null,null,{"$f":"COUNT(AC45:HF45)","v":0},null,null,null,null,null,null,null,null,null,null,null,null,null,null,null,null,null,{"$f":"SUM(IFERROR(AC46:HF46-AC45:HF45-AC47:HF47,0))","v":0},null,null,null,null,null,null,null,0.70833333333333337]
[null,null,null,null,null,null,null,null,null,null,null,null,null,null,null,null,null,null,null,null,null,null,null,null,null,null,null,null,null,null,null,null,null,null,null,null,null,null,null,null,null,null,null,null,null,null,null,null,null,null,null,null,null,null,null,null,null,null,null,null,null,null,null,null,null,null,null,null,null,null,null,null,null,null,null,null,null,null,null,null,null,null,null,null,null,null,null,null,null,null,null,null,null,null,null,null,null,null,null,null,null,null,null,null,null,null,null,null,null,null,null,null,null,null,null,null,null,null,null,null,null,null,null,null,null,null,null,null,null,null,null,null,null,null,null,null,null,null,null,null,null,null,null,null,null,null,null,null,null,null,null,null,null,null,null,null,null,null,null,null,null,null,null,null,null,null,null,null,null,null,null,null,null,null,null,null,null,null,null,null,null,null,null,null,null,null,null,null,null,null,null,null,null,null,null,null,null,null,null,null,null,null,null,null,null,null,null,null,null,null,null,null,null,null,null,null,null,null,null,null,null,null,null,null,null,null,null,null,null,null,null,null,null,null,null,null,null,null,null,null,0.72916666666666663]
[null,null,null,null,null,null,null,null,null,null,null,null,null,null,null,null,null,null,null,null,null,null,null,"обед","обед",null,null,null,null,null,null,null,null,null,null,null,null,null,null,null,null,null,null,null,null,null,null,null,null,null,null,null,null,null,null,null,null,null,null,null,null,null,null,null,null,null,null,null,null,null,null,null,null,null,null,null,null,null,null,null,null,null,null,null,null,null,null,null,null,null,null,null,null,null,null,null,null,null,null,null,null,null,null,null,null,null,null,null,null,null,null,null,null,null,null,null,null,null,null,null,null,null,null,null,null,null,null,null,null,null,null,null,null,null,null,null,null,null,null,null,null,null,null,null,null,null,null,null,null,null,null,null,null,null,null,null,null,null,null,null,null,null,null,null,null,null,null,null,null,null,null,null,null,null,null,null,null,null,null,null,null,null,null,null,null,null,null,null,null,null,null,null,null,null,null,null,null,null,null,null,null,null,null,null,null,null,null,null,null,null,null,null,null,null,null,null,null,null,null,null,null,null,null,null,null,null,null,null,null,null,null,null,null,null,null,null,null,null,null,null,0.79166666666666663]
[null,null,null,null,null,null,null,null,null,null,null,null,null,null,null,null,null,null,null,null,null,null,null,null,"р.д.",null,null,null,{"$f":"(AC46-AC45-AC47)","v":"00:00:00"},null,null,null,null,null,{"$f":"(AI46-AI45-AI47)","v":"00:00:00"},null,null,null,null,null,"00:00:00",null,null,null,null,null,"00:00:00",null,null,null,null,null,"00:00:00",null,null,null,null,null,"00:00:00",null,null,null,null,null,"00:00:00",null,null,null,null,null,"00:00:00",null,null,null,null,null,"00:00:00",null,null,null,null,null,"00:00:00",null,null,null,null,null,"00:00:00",null,null,null,null,null,"00:00:00",null,null,null,null,null,{"$f":"(CW46-CW45-CW47)","v":"00:00:00"},null,null,null,null,null,"00:00:00",null,null,null,null,null,"00:00:00",null,null,null,null,null,"00:00:00",null,null,null,null,null,"00:00:00",null,null,null,null,null,"00:00:00",null,null,null,null,null,"00:00:00",null,null,null,null,null,"00:00:00",null,null,null,null,null,"00:00:00",null,null,null,null,null,"00:00:00",null,null,null,null,null,"00:00:00",null,null,null,null,null,{"$f":"(FK46-FK45-FK47)","v":"00:00:00"},null,null,null,null,null,"00:00:00",null,null,null,null,null,"00:00:00",null,null,null,null,null,"00:00:00",null,null,null,null,null,"00:00:00",null,null,null,null,null,"00:00:00",null,null,null,null,null,"00:00:00",null,null,null,null,null,"00:00:00",null,null,null,null,null,null,null,null,null,null,null,null,null,null,null,null,null,null,null,null,null,null,null,{"$f":"SUM(AC48:GZ48)","v":0},null,null,null,null,null,null,null,0.75]
[null,null,null,null,null,null,null,null,null,null,null,null,null,null,null,null,null,null,null,null,null,null,null,"пр","пр",null,null,null,null,null,null,null,null,null,null,null,null,null,null,null,null,null,null,null,null,null,null,null,null,null,null,null,null,null,null,null,null,null,null,null,null,null,null,null,null,null,null,null,null,null,null,null,null,null,null,null,null,null,null,null,null,null,null,null,null,null,null,null,null,null,null,null,null,null,null,null,null,null,null,null,null,null,null,null,null,null,null,null,null,null,null,null,null,null,null,null,null,null,null,null,null,null,null,null,null,null,null,null,null,null,null,null,null,null,null,null,null,null,null,null,null,null,null,null,null,null,null,null,null,null,null,null,null,null,null,null,null,null,null,null,null,null,null,null,null,null,null,null,null,null,null,null,null,null,null,null,null,null,null,null,null,null,null,null,null,null,null,null,null,null,null,null,null,null,null,null,null,null,null,null,null,null,null,null,null,null,null,null,null,null,null,null,null,null,{"$f":"SUM(AC49:HF49)","v":"00:00:00"},null,null,null,null,null,null,null,null,null,null,null,null,null,null,null,null,null,{"$f":"SUM(AG49:HQ50)","v":"00:00:00"},null,null,null,null,null,null,null,0.77083333333333337]
[null,null,null,null,null,null,null,null,null,null,null,null,null,null,null,null,null,null,null,null,null,null,null,null,"от",null,null,null,null,null,null,null,null,null,null,null,null,null,null,null,null,null,null,null,null,null,null,null,null,null,null,null,null,null,null,null,null,null,null,null,null,null,null,null,null,null,null,null,null,null,null,null,null,null,null,null,null,null,null,null,null,null,null,null,null,null,null,null,null,null,null,null,null,null,null,null,null,null,null,null,null,null,null,null,null,null,null,null,null,null,null,null,null,null,null,null,null,null,null,null,null,null,null,null,null,null,null,null,null,null,null,null,null,null,null,null,null,null,null,null,null,null,null,null,null,null,null,null,null,null,null,null,null,null,null,null,null,null,null,null,null,null,null,null,null,null,null,null,null,null,null,null,null,null,null,null,null,null,null,null,null,null,null,null,null,null,null,null,null,null,null,null,null,null,null,null,null,null,null,null,null,null,null,null,null,null,null,null,null,null,null,null,null,null,{"$f":"COUNTIF(AC51:HF51,\"=От\")","v":0},null,null,null,null,null,null,null,null,null,null,null,null,null,null,null,null,null,null,null,null,null,null,null,null,null,0.625]
[5,null,null,null,null,null,null,null,null,null,null,null,null,null,null,null,null,null,null,null,null,null,null,1,null,null,null,null,null,null,null,null,null,null,null,null,null,null,null,null,null,null,null,null,null,null,null,null,null,null,null,null,null,null,null,null,null,null,null,null,null,null,null,null,null,null,null,null,null,null,null,null,null,null,null,null,null,null,null,null,null,null,null,null,null,null,null,null,null,null,null,null,null,null,null,null,null,null,null,null,null,null,null,null,null,null,null,null,null,null,null,null,null,null,null,null,null,null,null,null,null,null,null,null,null,null,null,null,null,null,null,null,null,null,null,null,null,null,null,null,null,null,null,null,null,null,null,null,null,null,null,null,null,null,null,null,null,null,null,null,null,null,null,null,null,null,null,null,null,null,null,null,null,null,null,null,null,null,null,null,null,null,null,null,null,null,null,null,null,null,null,null,null,null,null,null,null,null,null,null,null,null,null,null,null,null,null,null,null,null,null,null,null,null,{"$f":"COUNT(AC51:HF51)","v":0},null,null,null,null,null,null,null,null,null,null,null,null,null,null,null,null,null,{"$f":"SUM(IFERROR(AC52:HF52-AC51:HF51-AC53:HF53,0))","v":0},null,null,null,null,null,null,null,0.875]
[null,null,null,null,null,null,null,null,null,null,null,null,null,null,null,null,null,null,null,null,null,null,null,null,null,null,null,null,null,null,null,null,null,null,null,null,null,null,null,null,null,null,null,null,null,null,null,null,null,null,null,null,null,null,null,null,null,null,null,null,null,null,null,null,null,null,null,null,null,null,null,null,null,null,null,null,null,null,null,null,null,null,null,null,null,null,null,null,null,null,null,null,null,null,null,null,null,null,null,null,null,null,null,null,null,null,null,null,null,null,null,null,null,null,null,null,null,null,null,null,null,null,null,null,null,null,null,null,null,null,null,null,null,null,null,null,null,null,null,null,null,null,null,null,null,null,null,null,null,null,null,null,null,null,null,null,null,null,null,null,null,null,null,null,null,null,null,null,null,null,null,null,null,null,null,null,null,null,null,null,null,null,null,null,null,null,null,null,null,null,null,null,null,null,null,null,null,null,null,null,null,null,null,null,null,null,null,null,null,null,null,null,null,null,null,null,null,null,null,null,null,null,null,null,null,null,null,null,null,null,null,null,null,null,null,null,null,null,null,null,0.58333333333333337]
[null,null,null,null,null,null,null,null,null,null,null,null,null,null,null,null,null,null,null,null,null,null,null,"обед","обед",null,null,null,null,null,null,null,null,null,null,null,null,null,null,null,null,null,null,null,null,null,null,null,null,null,null,null,null,null,null,null,null,null,null,null,null,null,null,null,null,null,null,null,null,null,null,null,null,null,null,null,null,null,null,null,null,null,null,null,null,null,null,null,null,null,null,null,null,null,null,null,null,null,null,null,null,null,null,null,null,null,null,null,null,null,null,null,null,null,null,null,null,null,null,null,null,null,null,null,null,null,null,null,null,null,null,null,null,null,null,null,null,null,null,null,null,null,null,null,null,null,null,null,null,null,null,null,null,null,null,null,null,null,null,null,null,null,null,null,null,null,null,null,null,null,null,null,null,null,null,null,null,null,null,null,null,null,null,null,null,null,null,null,null,null,null,null,null,null,null,null,null,null,null,null,null,null,null,null,null,null,null,null,null,null,null,null,null,null,null,null,null,null,null,null,null,null,null,null,null,null,null,null,null,null,null,null,null,null,null,null,null,null,null,null,0.83333333333333337]
[null,null,null,null,null,null,null,null,null,null,null,null,null,null,null,null,null,null,null,null,null,null,null,null,"р.д.",null,null,null,{"$f":"(AC52-AC51-AC53)","v":"00:00:00"},null,null,null,null,null,{"$f":"(AI52-AI51-AI53)","v":"00:00:00"},null,null,null,null,null,"00:00:00",null,null,null,null,null,"00:00:00",null,null,null,null,null,"00:00:00",null,null,null,null,null,"00:00:00",null,null,null,null,null,"00:00:00",null,null,null,null,null,"00:00:00",null,null,null,null,null,"00:00:00",null,null,null,null,null,"00:00:00",null,null,null,null,null,"00:00:00",null,null,null,null,null,"00:00:00",null,null,null,null,null,{"$f":"(CW52-CW51-CW53)","v":"00:00:00"},null,null,null,null,null,"00:00:00",null,null,null,null,null,"00:00:00",null,null,null,null,null,"00:00:00",null,null,null,null,null,"00:00:00",null,null,null,null,null,"00:00:00",null,null,null,null,null,"00:00:00",null,null,null,null,null,"00:00:00",null,null,null,null,null,"00:00:00",null,null,null,null,null,"00:00:00",null,null,null,null,null,"00:00:00",null,null,null,null,null,{"$f":"(FK52-FK51-FK53)","v":"00:00:00"},null,null,null,null,null,"00:00:00",null,null,null,null,null,"00:00:00",null,null,null,null,null,"00:00:00",null,null,null,null,null,"00:00:00",null,null,null,null,null,"00:00:00",null,null,null,null,null,"00:00:00",null,null,null,null,null,{"$f":"(HA52-HA51-HA53)","v":"00:00:00"},null,null,null,null,null,null,null,null,null,null,null,null,null,null,null,null,null,null,null,null,null,null,null,{"$f":"SUM(AC54:GZ54)","v":0},null,null,null,null,null,null,null,0.66666666666666663]
[null,null,null,null,null,null,null,null,null,null,null,null,null,null,null,null,null,null,null,null,null,null,null,"пр","пр",null,null,null,null,null,null,null,null,null,null,null,null,null,null,null,null,null,null,null,null,null,null,null,null,null,null,null,null,null,null,null,null,null,null,null,null,null,null,null,null,null,null,null,null,null,null,null,null,null,null,null,null,null,null,null,null,null,null,null,null,null,null,null,null,null,null,null,null,null,null,null,null,null,null,null,null,null,null,null,null,null,null,null,null,null,null,null,null,null,null,null,null,null,null,null,null,null,null,null,null,null,null,null,null,null,null,null,null,null,null,null,null,null,null,null,null,null,null,null,null,null,null,null,null,null,null,null,null,null,null,null,null,null,null,null,null,null,null,null,null,null,null,null,null,null,null,null,null,null,null,null,null,null,null,null,null,null,null,null,null,null,null,null,null,null,null,null,null,null,null,null,null,null,null,null,null,null,null,null,null,null,null,null,null,null,null,null,null,null,{"$f":"SUM(AC55:HF55)","v":"00:00:00"},null,null,null,null,null,null,null,null,null,null,null,null,null,null,null,null,null,null,null,null,null,null,null,null,null,0.9375]
[null,null,null,null,null,null,null,null,null,null,null,null,null,null,null,null,null,null,null,null,null,null,null,null,"от",null,null,null,null,null,null,null,null,null,null,null,null,null,null,null,null,null,null,null,null,null,null,null,null,null,null,null,null,null,null,null,null,null,null,null,null,null,null,null,null,null,null,null,null,null,null,null,null,null,null,null,null,null,null,null,null,null,null,null,null,null,null,null,null,null,null,null,null,null,null,null,null,null,null,null,null,null,null,null,null,null,null,null,null,null,null,null,null,null,null,null,null,null,null,null,null,null,null,null,null,null,null,null,null,null,null,null,null,null,null,null,null,null,null,null,null,null,null,null,null,null,null,null,null,null,null,null,null,null,null,null,null,null,null,null,null,null,null,null,null,null,null,null,null,null,null,null,null,null,null,null,null,null,null,null,null,null,null,null,null,null,null,null,null,null,null,null,null,null,null,null,null,null,null,null,null,null,null,null,null,null,null,null,null,null,null,null,null,null,{"$f":"COUNTIF(AC57:HF57,\"=От\")","v":0},null,null,null,null,null,null,null,null,null,null,null,null,null,null,null,null,null,null,null,null,null,null,null,null,null,0.95833333333333337]
[6,null,null,null,null,null,null,null,null,null,null,null,null,null,null,null,null,null,null,null,null,null,null,1,null,null,null,null,null,null,null,null,null,null,null,null,null,null,null,null,null,null,null,null,null,null,null,null,null,null,null,null,null,null,null,null,null,null,null,null,null,null,null,null,null,null,null,null,null,null,null,null,null,null,null,null,null,null,null,null,null,null,null,null,null,null,null,null,null,null,null,null,null,null,null,null,null,null,null,null,null,null,null,null,null,null,null,null,null,null,null,null,null,null,null,null,null,null,null,null,null,null,null,null,null,null,null,null,null,null,null,null,null,null,null,null,null,null,null,null,null,null,null,null,null,null,null,null,null,null,null,null,null,null,null,null,null,null,null,null,null,null,null,null,null,null,null,null,null,null,null,null,null,null,null,null,null,null,null,null,null,null,null,null,null,null,null,null,null,null,null,null,null,null,null,null,null,null,null,null,null,null,null,null,null,null,null,null,null,null,null,null,null,null,{"$f":"COUNT(AC57:HF57)","v":0},null,null,null,null,null,null,null,null,null,null,null,null,null,null,null,null,null,{"$f":"SUM(IFERROR(AC58:HF58-AC57:HF57-AC59:HF59,0))","v":0},null,null,null,null,null,null,null,0.97916666666666663]
[null,null,null,null,null,null,null,null,null,null,null,null,null,null,null,null,null,null,null,null,null,null,null,null,null,null,null,null,null,null,null,null,null,null,null,null,null,null,null,null,null,null,null,null,null,null,null,null,null,null,null,null,null,null,null,null,null,null,null,null,null,null,null,null,null,null,null,null,null,null,null,null,null,null,null,null,null,null,null,null,null,null,null,null,null,null,null,null,null,null,null,null,null,null,null,null,null,null,null,null,null,null,null,null,null,null,null,null,null,null,null,null,null,null,null,null,null,null,null,null,null,null,null,null,null,null,null,null,null,null,null,null,null,null,null,null,null,null,null,null,null,null,null,null,null,null,null,null,null,null,null,null,null,null,null,null,null,null,null,null,null,null,null,null,null,null,null,null,null,null,null,null,null,null,null,null,null,null,null,null,null,null,null,null,null,null,null,null,null,null,null,null,null,null,null,null,null,null,null,null,null,null,null,null,null,null,null,null,null,null,null,null,null,null,null,null,null,null,null,null,null,null,null,null,null,null,null,null,null,null,null,null,null,null,null,null,null,null,null,null,1]
[null,null,null,null,null,null,null,null,null,null,null,null,null,null,null,null,null,null,null,null,null,null,null,"обед","обед"]
[null,null,null,null,null,null,null,null,null,null,null,null,null,null,null,null,null,null,null,null,null,null,null,null,"р.д.",null,null,null,{"$f":"(AC58-AC57-AC59)","v":"00:00:00"},null,null,null,null,null,{"$f":"(AI58-AI57-AI59)","v":"00:00:00"},null,null,null,null,null,{"$f":"(AO58-AO57-AO59)","v":"00:00:00"},null,null,null,null,null,{"$f":"(AU58-AU57-AU59)","v":"00:00:00"},null,null,null,null,null,{"$f":"(BA58-BA57-BA59)","v":"00:00:00"},null,null,null,null,null,{"$f":"(BG58-BG57-BG59)","v":"00:00:00"},null,null,null,null,null,{"$f":"(BM58-BM57-BM59)","v":"00:00:00"},null,null,null,null,null,{"$f":"(BS58-BS57-BS59)","v":"00:00:00"},null,null,null,null,null,{"$f":"(BY58-BY57-BY59)","v":"00:00:00"},null,null,null,null,null,{"$f":"(CE58-CE57-CE59)","v":"00:00:00"},null,null,null,null,null,{"$f":"(CK58-CK57-CK59)","v":"00:00:00"},null,null,null,null,null,{"$f":"(CQ58-CQ57-CQ59)","v":"00:00:00"},null,null,null,null,null,{"$f":"(CW58-CW57-CW59)","v":"00:00:00"},null,null,null,null,null,{"$f":"(DC58-DC57-DC59)","v":"00:00:00"},null,null,null,null,null,{"$f":"(DI58-DI57-DI59)","v":"00:00:00"},null,null,null,null,null,{"$f":"(DO58-DO57-DO59)","v":"00:00:00"},null,null,null,null,null,{"$f":"(DU58-DU57-DU59)","v":"00:00:00"},null,null,null,null,null,{"$f":"(EA58-EA57-EA59)","v":"00:00:00"},null,null,null,null,null,{"$f":"(EG58-EG57-EG59)","v":"00:00:00"},null,null,null,null,null,{"$f":"(EM58-EM57-EM59)","v":"00:00:00"},null,null,null,null,null,{"$f":"(ES58-ES57-ES59)","v":"00:00:00"},null,null,null,null,null,{"$f":"(EY58-EY57-EY59)","v":"00:00:00"},null,null,null,null,null,{"$f":"(FE58-FE57-FE59)","v":"00:00:00"},null,null,null,null,null,{"$f":"(FK58-FK57-FK59)","v":"00:00:00"},null,null,null,null,null,{"$f":"(FQ58-FQ57-FQ59)","v":"00:00:00"},null,null,null,null,null,{"$f":"(FW58-FW57-FW59)","v":"00:00:00"},null,null,null,null,null,{"$f":"(GC58-GC57-GC59)","v":"00:00:00"},null,null,null,null,null,{"$f":"(GI58-GI57-GI59)","v":"00:00:00"},null,null,null,null,null,{"$f":"(GO58-GO57-GO59)","v":"00:00:00"},null,null,null,null,null,null,null,null,null,null,null,{"$f":"(HA58-HA57-HA59)","v":"00:00:00"},null,null,null,null,null,null,null,null,null,null,null,null,null,null,null,null,null,null,null,null,null,null,null,{"$f":"SUM(AC60:GZ60)","v":0},null,null,null,null,null,null,null,"В"]
[null,null,null,null,null,null,null,null,null,null,null,null,null,null,null,null,null,null,null,null,null,null,null,"пр","пр",null,null,null,null,null,null,null,null,null,null,null,null,null,null,null,null,null,null,null,null,null,null,null,null,null,null,null,null,null,null,null,null,null,null,null,null,null,null,null,null,null,null,null,null,null,null,null,null,null,null,null,null,null,null,null,null,null,null,null,null,null,null,null,null,null,null,null,null,null,null,null,null,null,null,null,null,null,null,null,null,null,null,null,null,null,null,null,null,null,null,null,null,null,null,null,null,null,null,null,null,null,null,null,null,null,null,null,null,null,null,null,null,null,null,null,null,null,null,null,null,null,null,null,null,null,null,null,null,null,null,null,null,null,null,null,null,null,null,null,null,null,null,null,null,null,null,null,null,null,null,null,null,null,null,null,null,null,null,null,null,null,null,null,null,null,null,null,null,null,null,null,null,null,null,null,null,null,null,null,null,null,null,null,null,null,null,null,null,null,{"$f":"SUM(AC61:HF61)","v":"00:00:00"},null,null,null,null,null,null,null,null,null,null,null,null,null,null,null,null,null,null,null,null,null,null,null,null,null,"Б"]
[null,null,null,null,null,null,null,null,null,null,null,null,null,null,null,null,null,null,null,null,null,null,null,null,"от",null,null,null,null,null,null,null,null,null,null,null,null,null,null,null,null,null,null,null,null,null,null,null,null,null,null,null,null,null,null,null,null,null,null,null,null,null,null,null,null,null,null,null,null,null,null,null,null,null,null,null,null,null,null,null,null,null,null,null,null,null,null,null,null,null,null,null,null,null,null,null,null,null,null,null,null,null,null,null,null,null,null,null,null,null,null,null,null,null,null,null,null,null,null,null,null,null,null,null,null,null,null,null,null,null,null,null,null,null,null,null,null,null,null,null,null,null,null,null,null,null,null,null,null,null,null,null,null,null,null,null,null,null,null,null,null,null,null,null,null,null,null,null,null,null,null,null,null,null,null,null,null,null,null,null,null,null,null,null,null,null,null,null,null,null,null,null,null,null,null,null,null,null,null,null,null,null,null,null,null,null,null,null,null,null,null,null,null,null,{"$f":"COUNTIF(AC63:HF63,\"=От\")","v":0},null,null,null,null,null,null,null,null,null,null,null,null,null,null,null,null,null,null,null,null,null,null,null,null,null,"К"]
[7,null,null,null,null,null,null,null,null,null,null,null,null,null,null,null,null,null,null,null,null,null,null,1,null,null,null,null,null,null,null,null,null,null,null,null,null,null,null,null,null,null,null,null,null,null,null,null,null,null,null,null,null,null,null,null,null,null,null,null,null,null,null,null,null,null,null,null,null,null,null,null,null,null,null,null,null,null,null,null,null,null,null,null,null,null,null,null,null,null,null,null,null,null,null,null,null,null,null,null,null,null,null,null,null,null,null,null,null,null,null,null,null,null,null,null,null,null,null,null,null,null,null,null,null,null,null,null,null,null,null,null,null,null,null,null,null,null,null,null,null,null,null,null,null,null,null,null,null,null,null,null,null,null,null,null,null,null,null,null,null,null,null,null,null,null,null,null,null,null,null,null,null,null,null,null,null,null,null,null,null,null,null,null,null,null,null,null,null,null,null,null,null,null,null,null,null,null,null,null,null,null,null,null,null,null,null,null,null,null,null,null,null,null,{"$f":"COUNT(AC63:HF63)","v":0},null,null,null,null,null,null,null,null,null,null,null,null,null,null,null,null,null,{"$f":"SUM(IFERROR(AC64:HF64-AC63:HF63-AC65:HF65,0))","v":0},null,null,null,null,null,null,null,"ОТ"]
[null,null,null,null,null,null,null,null,null,null,null,null,null,null,null,null,null,null,null,null,null,null,null,null,null,null,null,null,null,null,null,null,null,null,null,null,null,null,null,null,null,null,null,null,null,null,null,null,null,null,null,null,null,null,null,null,null,null,null,null,null,null,null,null,null,null,null,null,null,null,null,null,null,null,null,null,null,null,null,null,null,null,null,null,null,null,null,null,null,null,null,null,null,null,null,null,null,null,null,null,null,null,null,null,null,null,null,null,null,null,null,null,null,null,null,null,null,null,null,null,null,null,null,null,null,null,null,null,null,null,null,null,null,null,null,null,null,null,null,null,null,null,null,null,null,null,null,null,null,null,null,null,null,null,null,null,null,null,null,null,null,null,null,null,null,null,null,null,null,null,null,null,null,null,null,null,null,null,null,null,null,null,null,null,null,null,null,null,null,null,null,null,null,null,null,null,null,null,null,null,null,null,null,null,null,null,null,null,null,null,null,null,null,null,null,null,null,null,null,null,null,null,null,null,null,null,null,null,null,null,null,null,null,null,null,null,null,null,null,null,"П"]
[null,null,null,null,null,null,null,null,null,null,null,null,null,null,null,null,null,null,null,null,null,null,null,"обед","обед"]
[null,null,null,null,null,null,null,null,null,null,null,null,null,null,null,null,null,null,null,null,null,null,null,null,"р.д.",null,null,null,{"$f":"(AC64-AC63-AC65)","v":"00:00:00"},null,null,null,null,null,{"$f":"(AI64-AI63-AI65)","v":"00:00:00"},null,null,null,null,null,{"$f":"(AO64-AO63-AO65)","v":"00:00:00"},null,null,null,null,null,{"$f":"(AU64-AU63-AU65)","v":"00:00:00"},null,null,null,null,null,{"$f":"(BA64-BA63-BA65)","v":"00:00:00"},null,null,null,null,null,{"$f":"(BG64-BG63-BG65)","v":"00:00:00"},null,null,null,null,null,{"$f":"(BM64-BM63-BM65)","v":"00:00:00"},null,null,null,null,null,{"$f":"(BS64-BS63-BS65)","v":"00:00:00"},null,null,null,null,null,{"$f":"(BY64-BY63-BY65)","v":"00:00:00"},null,null,null,null,null,{"$f":"(CE64-CE63-CE65)","v":"00:00:00"},null,null,null,null,null,{"$f":"(CK64-CK63-CK65)","v":"00:00:00"},null,null,null,null,null,{"$f":"(CQ64-CQ63-CQ65)","v":"00:00:00"},null,null,null,null,null,{"$f":"(CW64-CW63-CW65)","v":"00:00:00"},null,null,null,null,null,{"$f":"(DC64-DC63-DC65)","v":"00:00:00"},null,null,null,null,null,{"$f":"(DI64-DI63-DI65)","v":"00:00:00"},null,null,null,null,null,{"$f":"(DO64-DO63-DO65)","v":"00:00:00"},null,null,null,null,null,{"$f":"(DU64-DU63-DU65)","v":"00:00:00"},null,null,null,null,null,{"$f":"(EA64-EA63-EA65)","v":"00:00:00"},null,null,null,null,null,{"$f":"(EG64-EG63-EG65)","v":"00:00:00"},null,null,null,null,null,{"$f":"(EM64-EM63-EM65)","v":"00:00:00"},null,null,null,null,null,{"$f":"(ES64-ES63-ES65)","v":"00:00:00"},null,null,null,null,null,{"$f":"(EY64-EY63-EY65)","v":"00:00:00"},null,null,null,null,null,{"$f":"(FE64-FE63-FE65)","v":"00:00:00"},null,null,null,null,null,{"$f":"(FK64-FK63-FK65)","v":"00:00:00"},null,null,null,null,null,{"$f":"(FQ64-FQ63-FQ65)","v":"00:00:00"},null,null,null,null,null,{"$f":"(FW64-FW63-FW65)","v":"00:00:00"},null,null,null,null,null,{"$f":"(GC64-GC63-GC65)","v":"00:00:00"},null,null,null,null,null,{"$f":"(GI64-GI63-GI65)","v":"00:00:00"},null,null,null,null,null,{"$f":"(GO64-GO63-GO65)","v":"00:00:00"},null,null,null,null,null,{"$f":"(GU64-GU63-GU65)","v":"00:00:00"},null,null,null,null,null,{"$f":"(HA64-HA63-HA65)","v":"00:00:00"},null,null,null,null,null,null,null,null,null,null,null,null,null,null,null,null,null,null,null,null,null,null,null,{"$f":"SUM(AC66:GZ66)","v":0},null,null,null,null,null,null,null,"С"]
[null,null,null,null,null,null,null,null,null,null,null,null,null,null,null,null,null,null,null,null,null,null,null,"пр","пр",null,null,null,null,null,null,null,null,null,null,null,null,null,null,null,null,null,null,null,null,null,null,null,null,null,null,null,null,null,null,null,null,null,null,null,null,null,null,null,null,null,null,null,null,null,null,null,null,null,null,null,null,null,null,null,null,null,null,null,null,null,null,null,null,null,null,null,null,null,null,null,null,null,null,null,null,null,null,null,null,null,null,null,null,null,null,null,null,null,null,null,null,null,null,null,null,null,null,null,null,null,null,null,null,null,null,null,null,null,null,null,null,null,null,null,null,null,null,null,null,null,null,null,null,null,null,null,null,null,null,null,null,null,null,null,null,null,null,null,null,null,null,null,null,null,null,null,null,null,null,null,null,null,null,null,null,null,null,null,null,null,null,null,null,null,null,null,null,null,null,null,null,null,null,null,null,null,null,null,null,null,null,null,null,null,null,null,null,null,{"$f":"SUM(AC67:HF67)","v":"00:00:00"}]
[null,null,null,null,null,null,null,null,null,null,null,null,null,null,null,null,null,null,null,null,null,null,null,null,"от",null,null,null,null,null,null,null,null,null,null,null,null,null,null,null,null,null,null,null,null,null,null,null,null,null,null,null,null,null,null,null,null,null,null,null,null,null,null,null,null,null,null,null,null,null,null,null,null,null,null,null,null,null,null,null,null,null,null,null,null,null,null,null,null,null,null,null,null,null,null,null,null,null,null,null,null,null,null,null,null,null,null,null,null,null,null,null,null,null,null,null,null,null,null,null,null,null,null,null,null,null,null,null,null,null,null,null,null,null,null,null,null,null,null,null,null,null,null,null,null,null,null,null,null,null,null,null,null,null,null,null,null,null,null,null,null,null,null,null,null,null,null,null,null,null,null,null,null,null,null,null,null,null,null,null,null,null,null,null,null,null,null,null,null,null,null,null,null,null,null,null,null,null,null,null,null,null,null,null,null,null,null,null,null,null,null,null,null,null,{"$f":"COUNTIF(AC69:HF69,\"=От\")","v":0}]
[8,null,null,null,null,null,null,null,null,null,null,null,null,null,null,null,null,null,null,null,null,null,null,1,null,null,null,null,null,null,null,null,null,null,null,null,null,null,null,null,null,null,null,null,null,null,null,null,null,null,null,null,null,null,null,null,null,null,null,null,null,null,null,null,null,null,null,null,null,null,null,null,null,null,null,null,null,null,null,null,null,null,null,null,null,null,null,null,null,null,null,null,null,null,null,null,null,null,null,null,null,null,null,null,null,null,null,null,null,null,null,null,null,null,null,null,null,null,null,null,null,null,null,null,null,null,null,null,null,null,null,null,null,null,null,null,null,null,null,null,null,null,null,null,null,null,null,null,null,null,null,null,null,null,null,null,null,null,null,null,null,null,null,null,null,null,null,null,null,null,null,null,null,null,null,null,null,null,null,null,null,null,null,null,null,null,null,null,null,null,null,null,null,null,null,null,null,null,null,null,null,null,null,null,null,null,null,null,null,null,null,null,null,null,{"$f":"COUNT(AC69:HF69)","v":0},null,null,null,null,null,null,null,null,null,null,null,null,null,null,null,null,null,{"$f":"SUM(IFERROR(AC70:HF70-AC69:HF69-AC71:HF71,0))","v":0}]
[]
[null,null,null,null,null,null,null,null,null,null,null,null,null,null,null,null,null,null,null,null,null,null,null,"обед","обед"]
[null,null,null,null,null,null,null,null,null,null,null,null,null,null,null,null,null,null,null,null,null,null,null,null,"р.д.",null,null,null,{"$f":"(AC70-AC69-AC71)","v":"00:00:00"},null,null,null,null,null,{"$f":"(AI70-AI69-AI71)","v":"00:00:00"},null,null,null,null,null,{"$f":"(AO70-AO69-AO71)","v":"00:00:00"},null,null,null,null,null,{"$f":"(AU70-AU69-AU71)","v":"00:00:00"},null,null,null,null,null,{"$f":"(BA70-BA69-BA71)","v":"00:00:00"},null,null,null,null,null,{"$f":"(BG70-BG69-BG71)","v":"00:00:00"},null,null,null,null,null,{"$f":"(BM70-BM69-BM71)","v":"00:00:00"},null,null,null,null,null,{"$f":"(BS70-BS69-BS71)","v":"00:00:00"},null,null,null,null,null,{"$f":"(BY70-BY69-BY71)","v":"00:00:00"},null,null,null,null,null,{"$f":"(CE70-CE69-CE71)","v":"00:00:00"},null,null,null,null,null,{"$f":"(CK70-CK69-CK71)","v":"00:00:00"},null,null,null,null,null,{"$f":"(CQ70-CQ69-CQ71)","v":"00:00:00"},null,null,null,null,null,{"$f":"(CW70-CW69-CW71)","v":"00:00:00"},null,null,null,null,null,{"$f":"(DC70-DC69-DC71)","v":"00:00:00"},null,null,null,null,null,{"$f":"(DI70-DI69-DI71)","v":"00:00:00"},null,null,null,null,null,{"$f":"(DO70-DO69-DO71)","v":"00:00:00"},null,null,null,null,null,{"$f":"(DU70-DU69-DU71)","v":"00:00:00"},null,null,null,null,null,{"$f":"(EA70-EA69-EA71)","v":"00:00:00"},null,null,null,null,null,{"$f":"(EG70-EG69-EG71)","v":"00:00:00"},null,null,null,null,null,{"$f":"(EM70-EM69-EM71)","v":"00:00:00"},null,null,null,null,null,{"$f":"(ES70-ES69-ES71)","v":"00:00:00"},null,null,null,null,null,{"$f":"(EY70-EY69-EY71)","v":"00:00:00"},null,null,null,null,null,{"$f":"(FE70-FE69-FE71)","v":"00:00:00"},null,null,null,null,null,{"$f":"(FK70-FK69-FK71)","v":"00:00:00"},null,null,null,null,null,{"$f":"(FQ70-FQ69-FQ71)","v":"00:00:00"},null,null,null,null,null,{"$f":"(FW70-FW69-FW71)","v":"00:00:00"},null,null,null,null,null,{"$f":"(GC70-GC69-GC71)","v":"00:00:00"},null,null,null,null,null,{"$f":"(GI70-GI69-GI71)","v":"00:00:00"},null,null,null,null,null,{"$f":"(GO70-GO69-GO71)","v":"00:00:00"},null,null,null,null,null,{"$f":"(GU70-GU69-GU71)","v":"00:00:00"},null,null,null,null,null,{"$f":"(HA70-HA69-HA71)","v":"00:00:00"},null,null,null,null,null,null,null,null,null,null,null,null,null,null,null,null,null,null,null,null,null,null,null,{"$f":"SUM(AC72:GZ72)","v":0}]
[null,null,null,null,null,null,null,null,null,null,null,null,null,null,null,null,null,null,null,null,null,null,null,"пр","пр",null,null,null,null,null,null,null,null,null,null,null,null,null,null,null,null,null,null,null,null,null,null,null,null,null,null,null,null,null,null,null,null,null,null,null,null,null,null,null,null,null,null,null,null,null,null,null,null,null,null,null,null,null,null,null,null,null,null,null,null,null,null,null,null,null,null,null,null,null,null,null,null,null,null,null,null,null,null,null,null,null,null,null,null,null,null,null,null,null,null,null,null,null,null,null,null,null,null,null,null,null,null,null,null,null,null,null,null,null,null,null,null,null,null,null,null,null,null,null,null,null,null,null,null,null,null,null,null,null,null,null,null,null,null,null,null,null,null,null,null,null,null,null,null,null,null,null,null,null,null,null,null,null,null,null,null,null,null,null,null,null,null,null,null,null,null,null,null,null,null,null,null,null,null,null,null,null,null,null,null,null,null,null,null,null,null,null,null,null,{"$f":"SUM(AC73:HF73)","v":"00:00:00"}]
[null,null,null,null,null,null,null,null,null,null,null,null,null,null,null,null,null,null,null,null,null,null,null,null,"от",null,null,null,null,null,null,null,null,null,null,null,null,null,null,null,null,null,null,null,null,null,null,null,null,null,null,null,null,null,null,null,null,null,null,null,null,null,null,null,null,null,null,null,null,null,null,null,null,null,null,null,null,null,null,null,null,null,null,null,null,null,null,null,null,null,null,null,null,null,null,null,null,null,null,null,null,null,null,null,null,null,null,null,null,null,null,null,null,null,null,null,null,null,null,null,null,null,null,null,null,null,null,null,null,null,null,null,null,null,null,null,null,null,null,null,null,null,null,null,null,null,null,null,null,null,null,null,null,null,null,null,null,null,null,null,null,null,null,null,null,null,null,null,null,null,null,null,null,null,null,null,null,null,null,null,null,null,null,null,null,null,null,null,null,null,null,null,null,null,null,null,null,null,null,null,null,null,null,null,null,null,null,null,null,null,null,null,null,null,{"$f":"COUNTIF(AC75:HF75,\"=От\")","v":0}]
[9,null,null,null,null,null,null,null,null,null,null,null,null,null,null,null,null,null,null,null,null,null,null,1,null,null,null,null,null,null,null,null,null,null,null,null,null,null,null,null,null,null,null,null,null,null,null,null,null,null,null,null,null,null,null,null,null,null,null,null,null,null,null,null,null,null,null,null,null,null,null,null,null,null,null,null,null,null,null,null,null,null,null,null,null,null,null,null,null,null,null,null,null,null,null,null,null,null,null,null,null,null,null,null,null,null,null,null,null,null,null,null,null,null,null,null,null,null,null,null,null,null,null,null,null,null,null,null,null,null,null,null,null,null,null,null,null,null,null,null,null,null,null,null,null,null,null,null,null,null,null,null,null,null,null,null,null,null,null,null,null,null,null,null,null,null,null,null,null,null,null,null,null,null,null,null,null,null,null,null,null,null,null,null,null,null,null,null,null,null,null,null,null,null,null,null,null,null,null,null,null,null,null,null,null,null,null,null,null,null,null,null,null,null,{"$f":"COUNT(AC75:HF75)","v":0},null,null,null,null,null,null,null,null,null,null,null,null,null,null,null,null,null,{"$f":"SUM(IF(ISNUMBER(AC75:HF75),AC76:HF76-AC75:HF75+(AC76:HF76<AC75:HF75),))*24","v":0}]
[]
[null,null,null,null,null,null,null,null,null,null,null,null,null,null,null,null,null,null,null,null,null,null,null,null,null,null,null,null,{"$f":"MOD(AC76-AC75,1)","v":0},null,null,null,null,null,{"$f":"MOD(AI76-AI75,1)","v":0},null,null,null,null,null,{"$f":"MOD(AO76-AO75,1)","v":0},null,null,null,null,null,{"$f":"MOD(AU76-AU75,1)","v":0},null,null,null,null,null,{"$f":"MOD(BA76-BA75,1)","v":0},null,null,null,null,null,{"$f":"MOD(BG76-BG75,1)","v":0},null,null,null,null,null,{"$f":"MOD(BM76-BM75,1)","v":0},null,null,null,null,null,{"$f":"MOD(BS76-BS75,1)","v":0},null,null,null,null,null,{"$f":"MOD(BY76-BY75,1)","v":0},null,null,null,null,null,{"$f":"MOD(CE76-CE75,1)","v":0},null,null,null,null,null,{"$f":"MOD(CK76-CK75,1)","v":0},null,null,null,null,null,{"$f":"MOD(CQ76-CQ75,1)","v":0},null,null,null,null,null,{"$f":"MOD(CW76-CW75,1)","v":0},null,null,null,null,null,{"$f":"MOD(DC76-DC75,1)","v":0},null,null,null,null,null,{"$f":"MOD(DI76-DI75,1)","v":0},null,null,null,null,null,{"$f":"MOD(DO76-DO75,1)","v":0},null,null,null,null,null,{"$f":"MOD(DU76-DU75,1)","v":0},null,null,null,null,null,{"$f":"MOD(EA76-EA75,1)","v":0},null,null,null,null,null,{"$f":"MOD(EG76-EG75,1)","v":0},null,null,null,null,null,{"$f":"MOD(EM76-EM75,1)","v":0},null,null,null,null,null,{"$f":"MOD(ES76-ES75,1)","v":0},null,null,null,null,null,{"$f":"MOD(EY76-EY75,1)","v":0},null,null,null,null,null,{"$f":"MOD(FE76-FE75,1)","v":0},null,null,null,null,null,{"$f":"MOD(FK76-FK75,1)","v":0},null,null,null,null,null,{"$f":"MOD(FQ76-FQ75,1)","v":0},null,null,null,null,null,{"$f":"MOD(FW76-FW75,1)","v":0},null,null,null,null,null,{"$f":"MOD(GC76-GC75,1)","v":0},null,null,null,null,null,{"$f":"MOD(GI76-GI75,1)","v":0},null,null,null,null,null,{"$f":"MOD(GO76-GO75,1)","v":0},null,null,null,null,null,{"$f":"MOD(GU76-GU75,1)","v":0},null,null,null,null,null,{"$f":"MOD(HA76-HA75,1)","v":0},null,null,null,null,null,null,null,null,null,null,null,null,null,null,null,null,null,null,null,null,null,null,null,{"$f":"SUM(AC77:HF77)","v":0}]
[]
[null,null,null,null,null,null,null,null,null,null,null,null,null,null,null,null,null,null,null,null,null,null,null,"НОЧЬ",null,null,null,null,{"$f":"(MIN(AC76,6/24)-MIN(AC75,6/24)+MAX(AC76,22/24)-MAX(AC75,22/24))*24+(AC76<AC75)*8","v":0},null,null,null,null,null,{"$f":"(MIN(AI76,6/24)-MIN(AI75,6/24)+MAX(AI76,22/24)-MAX(AI75,22/24))*24+(AI76<AI75)*8","v":0},null,null,null,null,null,{"$f":"(MIN(AO76,6/24)-MIN(AO75,6/24)+MAX(AO76,22/24)-MAX(AO75,22/24))*24+(AO76<AO75)*8","v":0},null,null,null,null,null,{"$f":"(MIN(AU76,6/24)-MIN(AU75,6/24)+MAX(AU76,22/24)-MAX(AU75,22/24))*24+(AU76<AU75)*8","v":0},null,null,null,null,null,{"$f":"(MIN(BA76,6/24)-MIN(BA75,6/24)+MAX(BA76,22/24)-MAX(BA75,22/24))*24+(BA76<BA75)*8","v":0},null,null,null,null,null,{"$f":"(MIN(BG76,6/24)-MIN(BG75,6/24)+MAX(BG76,22/24)-MAX(BG75,22/24))*24+(BG76<BG75)*8","v":0},null,null,null,null,null,{"$f":"(MIN(BM76,6/24)-MIN(BM75,6/24)+MAX(BM76,22/24)-MAX(BM75,22/24))*24+(BM76<BM75)*8","v":0},null,null,null,null,null,{"$f":"(MIN(BS76,6/24)-MIN(BS75,6/24)+MAX(BS76,22/24)-MAX(BS75,22/24))*24+(BS76<BS75)*8","v":0},null,null,null,null,null,{"$f":"(MIN(BY76,6/24)-MIN(BY75,6/24)+MAX(BY76,22/24)-MAX(BY75,22/24))*24+(BY76<BY75)*8","v":0},null,null,null,null,null,{"$f":"(MIN(CE76,6/24)-MIN(CE75,6/24)+MAX(CE76,22/24)-MAX(CE75,22/24))*24+(CE76<CE75)*8","v":0},null,null,null,null,null,{"$f":"(MIN(CK76,6/24)-MIN(CK75,6/24)+MAX(CK76,22/24)-MAX(CK75,22/24))*24+(CK76<CK75)*8","v":0},null,null,null,null,null,{"$f":"(MIN(CQ76,6/24)-MIN(CQ75,6/24)+MAX(CQ76,22/24)-MAX(CQ75,22/24))*24+(CQ76<CQ75)*8","v":0},null,null,null,null,null,{"$f":"(MIN(CW76,6/24)-MIN(CW75,6/24)+MAX(CW76,22/24)-MAX(CW75,22/24))*24+(CW76<CW75)*8","v":0},null,null,null,null,null,{"$f":"(MIN(DC76,6/24)-MIN(DC75,6/24)+MAX(DC76,22/24)-MAX(DC75,22/24))*24+(DC76<DC75)*8","v":0},null,null,null,null,null,{"$f":"(MIN(DI76,6/24)-MIN(DI75,6/24)+MAX(DI76,22/24)-MAX(DI75,22/24))*24+(DI76<DI75)*8","v":0},null,null,null,null,null,{"$f":"(MIN(DO76,6/24)-MIN(DO75,6/24)+MAX(DO76,22/24)-MAX(DO75,22/24))*24+(DO76<DO75)*8","v":0},null,null,null,null,null,{"$f":"(MIN(DU76,6/24)-MIN(DU75,6/24)+MAX(DU76,22/24)-MAX(DU75,22/24))*24+(DU76<DU75)*8","v":0},null,null,null,null,null,{"$f":"(MIN(EA76,6/24)-MIN(EA75,6/24)+MAX(EA76,22/24)-MAX(EA75,22/24))*24+(EA76<EA75)*8","v":0},null,null,null,null,null,{"$f":"(MIN(EG76,6/24)-MIN(EG75,6/24)+MAX(EG76,22/24)-MAX(EG75,22/24))*24+(EG76<EG75)*8","v":0},null,null,null,null,null,{"$f":"(MIN(EM76,6/24)-MIN(EM75,6/24)+MAX(EM76,22/24)-MAX(EM75,22/24))*24+(EM76<EM75)*8","v":0},null,null,null,null,null,{"$f":"(MIN(ES76,6/24)-MIN(ES75,6/24)+MAX(ES76,22/24)-MAX(ES75,22/24))*24+(ES76<ES75)*8","v":0},null,null,null,null,null,{"$f":"(MIN(EY76,6/24)-MIN(EY75,6/24)+MAX(EY76,22/24)-MAX(EY75,22/24))*24+(EY76<EY75)*8","v":0},null,null,null,null,null,{"$f":"(MIN(FE76,6/24)-MIN(FE75,6/24)+MAX(FE76,22/24)-MAX(FE75,22/24))*24+(FE76<FE75)*8","v":0},null,null,null,null,null,{"$f":"(MIN(FK76,6/24)-MIN(FK75,6/24)+MAX(FK76,22/24)-MAX(FK75,22/24))*24+(FK76<FK75)*8","v":0},null,null,null,null,null,{"$f":"(MIN(FQ76,6/24)-MIN(FQ75,6/24)+MAX(FQ76,22/24)-MAX(FQ75,22/24))*24+(FQ76<FQ75)*8","v":0},null,null,null,null,null,{"$f":"(MIN(FW76,6/24)-MIN(FW75,6/24)+MAX(FW76,22/24)-MAX(FW75,22/24))*24+(FW76<FW75)*8","v":0},null,null,null,null,null,{"$f":"(MIN(GC76,6/24)-MIN(GC75,6/24)+MAX(GC76,22/24)-MAX(GC75,22/24))*24+(GC76<GC75)*8","v":0},null,null,null,null,null,{"$f":"(MIN(GI76,6/24)-MIN(GI75,6/24)+MAX(GI76,22/24)-MAX(GI75,22/24))*24+(GI76<GI75)*8","v":0},null,null,null,null,null,{"$f":"(MIN(GO76,6/24)-MIN(GO75,6/24)+MAX(GO76,22/24)-MAX(GO75,22/24))*24+(GO76<GO75)*8","v":0},null,null,null,null,null,{"$f":"(MIN(GU76,6/24)-MIN(GU75,6/24)+MAX(GU76,22/24)-MAX(GU75,22/24))*24+(GU76<GU75)*8","v":0},null,null,null,null,null,{"$f":"(MIN(HA76,6/24)-MIN(HA75,6/24)+MAX(HA76,22/24)-MAX(HA75,22/24))*24+(HA76<HA75)*8","v":0},null,null,null,null,null,null,null,null,null,null,null,null,null,null,null,null,null,null,null,null,null,null,null,{"$f":"SUM(AC79:HF79)","v":0}]
[]
[null,null,null,null,null,null,null,null,null,null,null,null,null,null,null,null,null,null,null,null,null,null,null,"пр","пр",null,null,null,null,null,null,null,null,null,null,null,null,null,null,null,null,null,null,null,null,null,null,null,null,null,null,null,null,null,null,null,null,null,null,null,null,null,null,null,null,null,null,null,null,null,null,null,null,null,null,null,null,null,null,null,null,null,null,null,null,null,null,null,null,null,null,null,null,null,null,null,null,null,null,null,null,null,null,null,null,null,null,null,null,null,null,null,null,null,null,null,null,null,null,null,null,null,null,null,null,null,null,null,null,null,null,null,null,null,null,null,null,null,null,null,null,null,null,null,null,null,null,null,null,null,null,null,null,null,null,null,null,null,null,null,null,null,null,null,null,null,null,null,null,null,null,null,null,null,null,null,null,null,null,null,null,null,null,null,null,null,null,null,null,null,null,null,null,null,null,null,null,null,null,null,null,null,null,null,null,null,null,null,null,null,null,null,null,null,{"$f":"COUNT(AC81:HF81)","v":0},null,null,null,null,null,null,null,null,null,null,null,null,null,null,null,null,null,{"$f":"SUM(AC81:HF81)","v":0}]
[null,null,null,null,null,null,null,null,null,null,null,null,null,null,null,null,null,null,null,null,null,null,null,null,"от",null,null,null,null,null,null,null,null,null,null,null,null,null,null,null,null,null,null,null,null,null,null,null,null,null,null,null,null,null,null,null,null,null,null,null,null,null,null,null,null,null,null,null,null,null,null,null,null,null,null,null,null,null,null,null,null,null,null,null,null,null,null,null,null,null,null,null,null,null,null,null,null,null,null,null,null,null,null,null,null,null,null,null,null,null,null,null,null,null,null,null,null,null,null,null,null,null,null,null,null,null,null,null,null,null,null,null,null,null,null,null,null,null,null,null,null,null,null,null,null,null,null,null,null,null,null,null,null,null,null,null,null,null,null,null,null,null,null,null,null,null,null,null,null,null,null,null,null,null,null,null,null,null,null,null,null,null,null,null,null,null,null,null,null,null,null,null,null,null,null,null,null,null,null,null,null,null,null,null,null,null,null,null,null,null,null,null,null,null,0]
[]
[]
[null,null,null,null,null,"С графиком ознакомлен(а):"]
[]
[null,null,null,null,null,1,null,null,null,null,null,null,null,null,null,null,null,null,null,null,null,null,null,null,null,null,null,null,null,null,null,null,null,null,null,null,null,null,null,null,null,null,null,null,null,null,null,null,null,null,null,null,null,null,null,null,null,null,null,null,null,null,null,"\"___\"______________2020"]
[null,null,null,null,null,2,null,null,null,null,null,null,null,null,null,null,null,null,null,null,null,null,null,null,null,null,null,null,null,null,null,null,null,null,null,null,null,null,null,null,null,null,null,null,null,null,null,null,null,null,null,null,null,null,null,null,null,null,null,null,null,null,null,"\"___\"______________2020"]
[null,null,null,null,null,3,null,null,null,null,null,null,null,null,null,null,null,null,null,null,null,null,null,null,null,null,null,null,null,null,null,null,null,null,null,null,null,null,null,null,null,null,null,null,null,null,null,null,null,null,null,null,null,null,null,null,null,null,null,null,null,null,null,"\"___\"______________2020"]
[null,null,null,null,null,4,null,null,null,null,null,null,null,null,null,null,null,null,null,null,null,null,null,null,null,null,null,null,null,null,null,null,null,null,null,null,null,null,null,null,null,null,null,null,null,null,null,null,null,null,null,null,null,null,null,null,null,null,null,null,null,null,null,"\"___\"______________2020"]
[null,null,null,null,null,5,null,null,null,null,null,null,null,null,null,null,null,null,null,null,null,null,null,null,null,null,null,null,null,null,null,null,null,null,null,null,null,null,null,null,null,null,null,null,null,null,null,null,null,null,null,null,null,null,null,null,null,null,null,null,null,null,null,"\"___\"______________2020"]
[null,null,null,null,null,6,null,null,null,null,null,null,null,null,null,null,null,null,null,null,null,null,null,null,null,null,null,null,null,null,null,null,null,null,null,null,null,null,null,null,null,null,null,null,null,null,null,null,null,null,null,null,null,null,null,null,null,null,null,null,null,null,null,"\"___\"______________2020"]
[null,null,null,null,null,7,null,null,null,null,null,null,null,null,null,null,null,null,null,null,null,null,null,null,null,null,null,null,null,null,null,null,null,null,null,null,null,null,null,null,null,null,null,null,null,null,null,null,null,null,null,null,null,null,null,null,null,null,null,null,null,null,null,"\"___\"______________2020"]
[null,null,null,null,null,8,null,null,null,null,null,null,null,null,null,null,null,null,null,null,null,null,null,null,null,null,null,null,null,null,null,null,null,null,null,null,null,null,null,null,null,null,null,null,null,null,null,null,null,null,null,null,null,null,null,null,null,null,null,null,null,null,null,"\"___\"______________2020"]
[null,null,null,null,null,9,null,null,null,null,null,null,null,null,null,null,null,null,null,null,null,null,null,null,null,null,null,null,null,null,null,null,null,null,null,null,null,null,null,null,null,null,null,null,null,null,null,null,null,null,null,null,null,null,null,null,null,null,null,null,null,null,null,"\"___\"______________2020"]
[null,null,null,null,null,10,null,null,null,null,null,null,null,null,null,null,null,null,null,null,null,null,null,null,null,null,null,null,null,null,null,null,null,null,null,null,null,null,null,null,null,null,null,null,null,null,null,null,null,null,null,null,null,null,null,null,null,null,null,null,null,null,null,"\"___\"______________2020"]
[null,null,null,null,null,11,null,null,null,null,null,null,null,null,null,null,null,null,null,null,null,null,null,null,null,null,null,null,null,null,null,null,null,null,null,null,null,null,null,null,null,null,null,null,null,null,null,null,null,null,null,null,null,null,null,null,null,null,null,null,null,null,null,"\"___\"______________2020"]
[null,null,null,null,null,12,null,null,null,null,null,null,null,null,null,null,null,null,null,null,null,null,null,null,null,null,null,null,null,null,null,null,null,null,null,null,null,null,null,null,null,null,null,null,null,null,null,null,null,null,null,null,null,null,null,null,null,null,null,null,null,null,null,"\"___\"______________2020"]